Workbook

Sheet model
A2: ONS - Herramienta para el análsisi de desigualdades en Salud
A4: 1. Parámetros
B6: Indicador salud | C6: Mortalidad Materna | E6: =VLOOKUP(CONCATENATE(B15,$F$12,indicador_sel),salud!A:H,8,0) -> 100000
B7: Indicador económico | C7: PIB
B8: Sentido | C8: =VLOOKUP(estrato_sel,direction,2,0) -> Positivo
I9: FALSE
B10: Tabla datos
C11: =VLOOKUP(event_sel,periods,2,0) -> 2000-2005 | F11: =VLOOKUP(event_sel,periods,3,0) -> 2010-2015
C12: p1 | F12: p2
C13: se | D13: casos | E13: pob | F13: se | G13: casos | H13: pob
B14: Amazonas | C14: =VLOOKUP(CONCATENATE(B14,$C$12,estrato_sel),estrato!A:F,6,0) -> 231.8333333 | D14: =IFERROR(VLOOKUP(CONCATENATE(B14,$C$12,indicador_sel),salud!A:H,6,0),0) -> 12 | E14: =VLOOKUP(CONCATENATE(B14,$C$12,indicador_sel),salud!A:H,7,0) -> 8100 | F14: =VLOOKUP(CONCATENATE(B14,$F$12,estrato_sel),estrato!A:F,6,0) -> 326.5 | G14: =IFERROR(VLOOKUP(CONCATENATE(B14,$F$12,indicador_sel),salud!A:H,6,0),0) -> 7 | H14: =VLOOKUP(CONCATENATE(B14,$F$12,indicador_sel),salud!A:H,7,0) -> 8618 | I14: =B14 -> Amazonas
B15: Antioquia | C15: =VLOOKUP(CONCATENATE(B15,$C$12,estrato_sel),estrato!A:F,6,0) -> 41657.33333 | D15: =IFERROR(VLOOKUP(CONCATENATE(B15,$C$12,indicador_sel),salud!A:H,6,0),0) -> 373 | E15: =VLOOKUP(CONCATENATE(B15,$C$12,indicador_sel),salud!A:H,7,0) -> 579644 | F15: =VLOOKUP(CONCATENATE(B15,$F$12,estrato_sel),estrato!A:F,6,0) -> 65591 | G15: =IFERROR(VLOOKUP(CONCATENATE(B15,$F$12,indicador_sel),salud!A:H,6,0),0) -> 211 | H15: =VLOOKUP(CONCATENATE(B15,$F$12,indicador_sel),salud!A:H,7,0) -> 458869 | I15: =B15 -> Antioquia
B16: Arauca | C16: =VLOOKUP(CONCATENATE(B16,$C$12,estrato_sel),estrato!A:F,6,0) -> 3005.333333 | D16: =IFERROR(VLOOKUP(CONCATENATE(B16,$C$12,indicador_sel),salud!A:H,6,0),0) -> 30 | E16: =VLOOKUP(CONCATENATE(B16,$C$12,indicador_sel),salud!A:H,7,0) -> 31182 | F16: =VLOOKUP(CONCATENATE(B16,$F$12,estrato_sel),estrato!A:F,6,0) -> 3147 | G16: =IFERROR(VLOOKUP(CONCATENATE(B16,$F$12,indicador_sel),salud!A:H,6,0),0) -> 14 | H16: =VLOOKUP(CONCATENATE(B16,$F$12,indicador_sel),salud!A:H,7,0) -> 25633 | I16: Arauca
B17: Atlántico | C17: =VLOOKUP(CONCATENATE(B17,$C$12,estrato_sel),estrato!A:F,6,0) -> 12464.16667 | D17: =IFERROR(VLOOKUP(CONCATENATE(B17,$C$12,indicador_sel),salud!A:H,6,0),0) -> 189 | E17: =VLOOKUP(CONCATENATE(B17,$C$12,indicador_sel),salud!A:H,7,0) -> 247615 | F17: =VLOOKUP(CONCATENATE(B17,$F$12,estrato_sel),estrato!A:F,6,0) -> 19295.16667 | G17: =IFERROR(VLOOKUP(CONCATENATE(B17,$F$12,indicador_sel),salud!A:H,6,0),0) -> 139 | H17: =VLOOKUP(CONCATENATE(B17,$F$12,indicador_sel),salud!A:H,7,0) -> 230819 | I17: Atlántico
B18: Bogotá | C18: =VLOOKUP(CONCATENATE(B18,$C$12,estrato_sel),estrato!A:F,6,0) -> 80237.83333 | D18: =IFERROR(VLOOKUP(CONCATENATE(B18,$C$12,indicador_sel),salud!A:H,6,0),0) -> 483 | E18: =VLOOKUP(CONCATENATE(B18,$C$12,indicador_sel),salud!A:H,7,0) -> 697517 | F18: =VLOOKUP(CONCATENATE(B18,$F$12,estrato_sel),estrato!A:F,6,0) -> 125643 | G18: =IFERROR(VLOOKUP(CONCATENATE(B18,$F$12,indicador_sel),salud!A:H,6,0),0) -> 227 | H18: =VLOOKUP(CONCATENATE(B18,$F$12,indicador_sel),salud!A:H,7,0) -> 633311 | I18: Bogotá
B19: Bolívar | C19: =VLOOKUP(CONCATENATE(B19,$C$12,estrato_sel),estrato!A:F,6,0) -> 11807.66667 | D19: =IFERROR(VLOOKUP(CONCATENATE(B19,$C$12,indicador_sel),salud!A:H,6,0),0) -> 158 | E19: =VLOOKUP(CONCATENATE(B19,$C$12,indicador_sel),salud!A:H,7,0) -> 185444 | F19: =VLOOKUP(CONCATENATE(B19,$F$12,estrato_sel),estrato!A:F,6,0) -> 18524.83333 | G19: =IFERROR(VLOOKUP(CONCATENATE(B19,$F$12,indicador_sel),salud!A:H,6,0),0) -> 122 | H19: =VLOOKUP(CONCATENATE(B19,$F$12,indicador_sel),salud!A:H,7,0) -> 210859 | I19: Bolívar
B20: Boyacá | C20: =VLOOKUP(CONCATENATE(B20,$C$12,estrato_sel),estrato!A:F,6,0) -> 8249.833333 | D20: =IFERROR(VLOOKUP(CONCATENATE(B20,$C$12,indicador_sel),salud!A:H,6,0),0) -> 114 | E20: =VLOOKUP(CONCATENATE(B20,$C$12,indicador_sel),salud!A:H,7,0) -> 129450 | F20: =VLOOKUP(CONCATENATE(B20,$F$12,estrato_sel),estrato!A:F,6,0) -> 13203.16667 | G20: =IFERROR(VLOOKUP(CONCATENATE(B20,$F$12,indicador_sel),salud!A:H,6,0),0) -> 51 | H20: =VLOOKUP(CONCATENATE(B20,$F$12,indicador_sel),salud!A:H,7,0) -> 99677 | I20: Boyacá
B21: Caldas | C21: =VLOOKUP(CONCATENATE(B21,$C$12,estrato_sel),estrato!A:F,6,0) -> 5405.166667 | D21: =IFERROR(VLOOKUP(CONCATENATE(B21,$C$12,indicador_sel),salud!A:H,6,0),0) -> 80 | E21: =VLOOKUP(CONCATENATE(B21,$C$12,indicador_sel),salud!A:H,7,0) -> 91186 | F21: =VLOOKUP(CONCATENATE(B21,$F$12,estrato_sel),estrato!A:F,6,0) -> 7139.5 | G21: =IFERROR(VLOOKUP(CONCATENATE(B21,$F$12,indicador_sel),salud!A:H,6,0),0) -> 33 | H21: =VLOOKUP(CONCATENATE(B21,$F$12,indicador_sel),salud!A:H,7,0) -> 62084 | I21: Caldas
B22: Caquetá | C22: =VLOOKUP(CONCATENATE(B22,$C$12,estrato_sel),estrato!A:F,6,0) -> 1433.5 | D22: =IFERROR(VLOOKUP(CONCATENATE(B22,$C$12,indicador_sel),salud!A:H,6,0),0) -> 73 | E22: =VLOOKUP(CONCATENATE(B22,$C$12,indicador_sel),salud!A:H,7,0) -> 41197 | F22: =VLOOKUP(CONCATENATE(B22,$F$12,estrato_sel),estrato!A:F,6,0) -> 2136.666667 | G22: =IFERROR(VLOOKUP(CONCATENATE(B22,$F$12,indicador_sel),salud!A:H,6,0),0) -> 53 | H22: =VLOOKUP(CONCATENATE(B22,$F$12,indicador_sel),salud!A:H,7,0) -> 45108 | I22: Caquetá
B23: Casanare | C23: =VLOOKUP(CONCATENATE(B23,$C$12,estrato_sel),estrato!A:F,6,0) -> 8879 | D23: =IFERROR(VLOOKUP(CONCATENATE(B23,$C$12,indicador_sel),salud!A:H,6,0),0) -> 16 | E23: =VLOOKUP(CONCATENATE(B23,$C$12,indicador_sel),salud!A:H,7,0) -> 34515 | F23: =VLOOKUP(CONCATENATE(B23,$F$12,estrato_sel),estrato!A:F,6,0) -> 8208.666667 | G23: =IFERROR(VLOOKUP(CONCATENATE(B23,$F$12,indicador_sel),salud!A:H,6,0),0) -> 19 | H23: =VLOOKUP(CONCATENATE(B23,$F$12,indicador_sel),salud!A:H,7,0) -> 41269 | I23: Casanare
B24: Cauca | C24: =VLOOKUP(CONCATENATE(B24,$C$12,estrato_sel),estrato!A:F,6,0) -> 4352.166667 | D24: =IFERROR(VLOOKUP(CONCATENATE(B24,$C$12,indicador_sel),salud!A:H,6,0),0) -> 162 | E24: =VLOOKUP(CONCATENATE(B24,$C$12,indicador_sel),salud!A:H,7,0) -> 107200 | F24: =VLOOKUP(CONCATENATE(B24,$F$12,estrato_sel),estrato!A:F,6,0) -> 7476.5 | G24: =IFERROR(VLOOKUP(CONCATENATE(B24,$F$12,indicador_sel),salud!A:H,6,0),0) -> 113 | H24: =VLOOKUP(CONCATENATE(B24,$F$12,indicador_sel),salud!A:H,7,0) -> 106211 | I24: Cauca
B25: Cesar | C25: =VLOOKUP(CONCATENATE(B25,$C$12,estrato_sel),estrato!A:F,6,0) -> 5192.833333 | D25: =IFERROR(VLOOKUP(CONCATENATE(B25,$C$12,indicador_sel),salud!A:H,6,0),0) -> 89 | E25: =VLOOKUP(CONCATENATE(B25,$C$12,indicador_sel),salud!A:H,7,0) -> 115867 | F25: =VLOOKUP(CONCATENATE(B25,$F$12,estrato_sel),estrato!A:F,6,0) -> 9299.166667 | G25: =IFERROR(VLOOKUP(CONCATENATE(B25,$F$12,indicador_sel),salud!A:H,6,0),0) -> 102 | H25: =VLOOKUP(CONCATENATE(B25,$F$12,indicador_sel),salud!A:H,7,0) -> 123632 | I25: Cesar
B26: Chocó | C26: =VLOOKUP(CONCATENATE(B26,$C$12,estrato_sel),estrato!A:F,6,0) -> 1084.166667 | D26: =IFERROR(VLOOKUP(CONCATENATE(B26,$C$12,indicador_sel),salud!A:H,6,0),0) -> 95 | E26: =VLOOKUP(CONCATENATE(B26,$C$12,indicador_sel),salud!A:H,7,0) -> 28046 | F26: =VLOOKUP(CONCATENATE(B26,$F$12,estrato_sel),estrato!A:F,6,0) -> 1884.5 | G26: =IFERROR(VLOOKUP(CONCATENATE(B26,$F$12,indicador_sel),salud!A:H,6,0),0) -> 78 | H26: =VLOOKUP(CONCATENATE(B26,$F$12,indicador_sel),salud!A:H,7,0) -> 38543 | I26: Chocó
B27: Córdoba | C27: =VLOOKUP(CONCATENATE(B27,$C$12,estrato_sel),estrato!A:F,6,0) -> 6297.666667 | D27: =IFERROR(VLOOKUP(CONCATENATE(B27,$C$12,indicador_sel),salud!A:H,6,0),0) -> 146 | E27: =VLOOKUP(CONCATENATE(B27,$C$12,indicador_sel),salud!A:H,7,0) -> 146885 | F27: =VLOOKUP(CONCATENATE(B27,$F$12,estrato_sel),estrato!A:F,6,0) -> 8567.5 | G27: =IFERROR(VLOOKUP(CONCATENATE(B27,$F$12,indicador_sel),salud!A:H,6,0),0) -> 161 | H27: =VLOOKUP(CONCATENATE(B27,$F$12,indicador_sel),salud!A:H,7,0) -> 159118 | I27: Córdoba
B28: Cundinamarca | C28: =VLOOKUP(CONCATENATE(B28,$C$12,estrato_sel),estrato!A:F,6,0) -> 15998.66667 | D28: =IFERROR(VLOOKUP(CONCATENATE(B28,$C$12,indicador_sel),salud!A:H,6,0),0) -> 167 | E28: =VLOOKUP(CONCATENATE(B28,$C$12,indicador_sel),salud!A:H,7,0) -> 213177 | F28: =VLOOKUP(CONCATENATE(B28,$F$12,estrato_sel),estrato!A:F,6,0) -> 25684.5 | G28: =IFERROR(VLOOKUP(CONCATENATE(B28,$F$12,indicador_sel),salud!A:H,6,0),0) -> 103 | H28: =VLOOKUP(CONCATENATE(B28,$F$12,indicador_sel),salud!A:H,7,0) -> 207543 | I28: Cundinamarca
B29: Guainía | C29: =VLOOKUP(CONCATENATE(B29,$C$12,estrato_sel),estrato!A:F,6,0) -> 105.6666667 | D29: =IFERROR(VLOOKUP(CONCATENATE(B29,$C$12,indicador_sel),salud!A:H,6,0),0) -> 8 | E29: =VLOOKUP(CONCATENATE(B29,$C$12,indicador_sel),salud!A:H,7,0) -> 3252 | F29: =VLOOKUP(CONCATENATE(B29,$F$12,estrato_sel),estrato!A:F,6,0) -> 150 | G29: =IFERROR(VLOOKUP(CONCATENATE(B29,$F$12,indicador_sel),salud!A:H,6,0),0) -> 6 | H29: =VLOOKUP(CONCATENATE(B29,$F$12,indicador_sel),salud!A:H,7,0) -> 3520 | I29: Guainía
B30: Guaviare | C30: =VLOOKUP(CONCATENATE(B30,$C$12,estrato_sel),estrato!A:F,6,0) -> 314 | D30: =IFERROR(VLOOKUP(CONCATENATE(B30,$C$12,indicador_sel),salud!A:H,6,0),0) -> 22 | E30: =VLOOKUP(CONCATENATE(B30,$C$12,indicador_sel),salud!A:H,7,0) -> 9674 | F30: =VLOOKUP(CONCATENATE(B30,$F$12,estrato_sel),estrato!A:F,6,0) -> 363.6666667 | G30: =IFERROR(VLOOKUP(CONCATENATE(B30,$F$12,indicador_sel),salud!A:H,6,0),0) -> 7 | H30: =VLOOKUP(CONCATENATE(B30,$F$12,indicador_sel),salud!A:H,7,0) -> 7240 | I30: Guaviare
B31: Huila | C31: =VLOOKUP(CONCATENATE(B31,$C$12,estrato_sel),estrato!A:F,6,0) -> 5937.333333 | D31: =IFERROR(VLOOKUP(CONCATENATE(B31,$C$12,indicador_sel),salud!A:H,6,0),0) -> 93 | E31: =VLOOKUP(CONCATENATE(B31,$C$12,indicador_sel),salud!A:H,7,0) -> 129970 | F31: =VLOOKUP(CONCATENATE(B31,$F$12,estrato_sel),estrato!A:F,6,0) -> 8176.166667 | G31: =IFERROR(VLOOKUP(CONCATENATE(B31,$F$12,indicador_sel),salud!A:H,6,0),0) -> 42 | H31: =VLOOKUP(CONCATENATE(B31,$F$12,indicador_sel),salud!A:H,7,0) -> 120104 | I31: Huila
B32: La Guajira | C32: =VLOOKUP(CONCATENATE(B32,$C$12,estrato_sel),estrato!A:F,6,0) -> 3492.5 | D32: =IFERROR(VLOOKUP(CONCATENATE(B32,$C$12,indicador_sel),salud!A:H,6,0),0) -> 73 | E32: =VLOOKUP(CONCATENATE(B32,$C$12,indicador_sel),salud!A:H,7,0) -> 62074 | F32: =VLOOKUP(CONCATENATE(B32,$F$12,estrato_sel),estrato!A:F,6,0) -> 5415.166667 | G32: =IFERROR(VLOOKUP(CONCATENATE(B32,$F$12,indicador_sel),salud!A:H,6,0),0) -> 136 | H32: =VLOOKUP(CONCATENATE(B32,$F$12,indicador_sel),salud!A:H,7,0) -> 81311 | I32: La Guajira
B33: Magdalena | C33: =VLOOKUP(CONCATENATE(B33,$C$12,estrato_sel),estrato!A:F,6,0) -> 4077.166667 | D33: =IFERROR(VLOOKUP(CONCATENATE(B33,$C$12,indicador_sel),salud!A:H,6,0),0) -> 134 | E33: =VLOOKUP(CONCATENATE(B33,$C$12,indicador_sel),salud!A:H,7,0) -> 117816 | F33: =VLOOKUP(CONCATENATE(B33,$F$12,estrato_sel),estrato!A:F,6,0) -> 6318.666667 | G33: =IFERROR(VLOOKUP(CONCATENATE(B33,$F$12,indicador_sel),salud!A:H,6,0),0) -> 113 | H33: =VLOOKUP(CONCATENATE(B33,$F$12,indicador_sel),salud!A:H,7,0) -> 135486 | I33: Magdalena
B34: Meta | C34: =VLOOKUP(CONCATENATE(B34,$C$12,estrato_sel),estrato!A:F,6,0) -> 6387.333333 | D34: =IFERROR(VLOOKUP(CONCATENATE(B34,$C$12,indicador_sel),salud!A:H,6,0),0) -> 89 | E34: =VLOOKUP(CONCATENATE(B34,$C$12,indicador_sel),salud!A:H,7,0) -> 90908 | F34: =VLOOKUP(CONCATENATE(B34,$F$12,estrato_sel),estrato!A:F,6,0) -> 20922.66667 | G34: =IFERROR(VLOOKUP(CONCATENATE(B34,$F$12,indicador_sel),salud!A:H,6,0),0) -> 45 | H34: =VLOOKUP(CONCATENATE(B34,$F$12,indicador_sel),salud!A:H,7,0) -> 92887 | I34: Meta
B35: Nariño | C35: =VLOOKUP(CONCATENATE(B35,$C$12,estrato_sel),estrato!A:F,6,0) -> 4710.166667 | D35: =IFERROR(VLOOKUP(CONCATENATE(B35,$C$12,indicador_sel),salud!A:H,6,0),0) -> 170 | E35: =VLOOKUP(CONCATENATE(B35,$C$12,indicador_sel),salud!A:H,7,0) -> 129536 | F35: =VLOOKUP(CONCATENATE(B35,$F$12,estrato_sel),estrato!A:F,6,0) -> 7221.166667 | G35: =IFERROR(VLOOKUP(CONCATENATE(B35,$F$12,indicador_sel),salud!A:H,6,0),0) -> 86 | H35: =VLOOKUP(CONCATENATE(B35,$F$12,indicador_sel),salud!A:H,7,0) -> 108734 | I35: Nariño
B36: Norte de Santander | C36: =VLOOKUP(CONCATENATE(B36,$C$12,estrato_sel),estrato!A:F,6,0) -> 5259 | D36: =IFERROR(VLOOKUP(CONCATENATE(B36,$C$12,indicador_sel),salud!A:H,6,0),0) -> 94 | E36: =VLOOKUP(CONCATENATE(B36,$C$12,indicador_sel),salud!A:H,7,0) -> 133690 | F36: =VLOOKUP(CONCATENATE(B36,$F$12,estrato_sel),estrato!A:F,6,0) -> 7821.5 | G36: =IFERROR(VLOOKUP(CONCATENATE(B36,$F$12,indicador_sel),salud!A:H,6,0),0) -> 74 | H36: =VLOOKUP(CONCATENATE(B36,$F$12,indicador_sel),salud!A:H,7,0) -> 123434 | I36: Norte de Santander
B37: Putumayo | C37: =VLOOKUP(CONCATENATE(B37,$C$12,estrato_sel),estrato!A:F,6,0) -> 1018.333333 | D37: =IFERROR(VLOOKUP(CONCATENATE(B37,$C$12,indicador_sel),salud!A:H,6,0),0) -> 38 | E37: =VLOOKUP(CONCATENATE(B37,$C$12,indicador_sel),salud!A:H,7,0) -> 29600 | F37: =VLOOKUP(CONCATENATE(B37,$F$12,estrato_sel),estrato!A:F,6,0) -> 2236 | G37: =IFERROR(VLOOKUP(CONCATENATE(B37,$F$12,indicador_sel),salud!A:H,6,0),0) -> 36 | H37: =VLOOKUP(CONCATENATE(B37,$F$12,indicador_sel),salud!A:H,7,0) -> 25939 | I37: Putumayo
B38: Quindío | C38: =VLOOKUP(CONCATENATE(B38,$C$12,estrato_sel),estrato!A:F,6,0) -> 2763.333333 | D38: =IFERROR(VLOOKUP(CONCATENATE(B38,$C$12,indicador_sel),salud!A:H,6,0),0) -> 32 | E38: =VLOOKUP(CONCATENATE(B38,$C$12,indicador_sel),salud!A:H,7,0) -> 51833 | F38: =VLOOKUP(CONCATENATE(B38,$F$12,estrato_sel),estrato!A:F,6,0) -> 3607.666667 | G38: =IFERROR(VLOOKUP(CONCATENATE(B38,$F$12,indicador_sel),salud!A:H,6,0),0) -> 15 | H38: =VLOOKUP(CONCATENATE(B38,$F$12,indicador_sel),salud!A:H,7,0) -> 35934 | I38: Quindío
B39: Risaralda | C39: =VLOOKUP(CONCATENATE(B39,$C$12,estrato_sel),estrato!A:F,6,0) -> 4846.5 | D39: =IFERROR(VLOOKUP(CONCATENATE(B39,$C$12,indicador_sel),salud!A:H,6,0),0) -> 50 | E39: =VLOOKUP(CONCATENATE(B39,$C$12,indicador_sel),salud!A:H,7,0) -> 85948 | F39: =VLOOKUP(CONCATENATE(B39,$F$12,estrato_sel),estrato!A:F,6,0) -> 7033.333333 | G39: =IFERROR(VLOOKUP(CONCATENATE(B39,$F$12,indicador_sel),salud!A:H,6,0),0) -> 33 | H39: =VLOOKUP(CONCATENATE(B39,$F$12,indicador_sel),salud!A:H,7,0) -> 69087 | I39: Risaralda
B40: San Andrés y Providencia | C40: =VLOOKUP(CONCATENATE(B40,$C$12,estrato_sel),estrato!A:F,6,0) -> 480.1666667 | D40: =IFERROR(VLOOKUP(CONCATENATE(B40,$C$12,indicador_sel),salud!A:H,6,0),0) -> 6 | E40: =VLOOKUP(CONCATENATE(B40,$C$12,indicador_sel),salud!A:H,7,0) -> 5928 | F40: =VLOOKUP(CONCATENATE(B40,$F$12,estrato_sel),estrato!A:F,6,0) -> 703.6666667 | G40: =IFERROR(VLOOKUP(CONCATENATE(B40,$F$12,indicador_sel),salud!A:H,6,0),0) -> 2 | H40: =VLOOKUP(CONCATENATE(B40,$F$12,indicador_sel),salud!A:H,7,0) -> 5095 | I40: San Andrés y Providencia
B41: Santander | C41: =VLOOKUP(CONCATENATE(B41,$C$12,estrato_sel),estrato!A:F,6,0) -> 20125.5 | D41: =IFERROR(VLOOKUP(CONCATENATE(B41,$C$12,indicador_sel),salud!A:H,6,0),0) -> 114 | E41: =VLOOKUP(CONCATENATE(B41,$C$12,indicador_sel),salud!A:H,7,0) -> 206050 | F41: =VLOOKUP(CONCATENATE(B41,$F$12,estrato_sel),estrato!A:F,6,0) -> 32817.83333 | G41: =IFERROR(VLOOKUP(CONCATENATE(B41,$F$12,indicador_sel),salud!A:H,6,0),0) -> 72 | H41: =VLOOKUP(CONCATENATE(B41,$F$12,indicador_sel),salud!A:H,7,0) -> 184251 | I41: Santander
B42: Sucre | C42: =VLOOKUP(CONCATENATE(B42,$C$12,estrato_sel),estrato!A:F,6,0) -> 2356.333333 | D42: =IFERROR(VLOOKUP(CONCATENATE(B42,$C$12,indicador_sel),salud!A:H,6,0),0) -> 57 | E42: =VLOOKUP(CONCATENATE(B42,$C$12,indicador_sel),salud!A:H,7,0) -> 83314 | F42: =VLOOKUP(CONCATENATE(B42,$F$12,estrato_sel),estrato!A:F,6,0) -> 3807 | G42: =IFERROR(VLOOKUP(CONCATENATE(B42,$F$12,indicador_sel),salud!A:H,6,0),0) -> 62 | H42: =VLOOKUP(CONCATENATE(B42,$F$12,indicador_sel),salud!A:H,7,0) -> 89804 | I42: Sucre
B43: Tolima | C43: =VLOOKUP(CONCATENATE(B43,$C$12,estrato_sel),estrato!A:F,6,0) -> 7267.333333 | D43: =IFERROR(VLOOKUP(CONCATENATE(B43,$C$12,indicador_sel),salud!A:H,6,0),0) -> 127 | E43: =VLOOKUP(CONCATENATE(B43,$C$12,indicador_sel),salud!A:H,7,0) -> 149057 | F43: =VLOOKUP(CONCATENATE(B43,$F$12,estrato_sel),estrato!A:F,6,0) -> 10123 | G43: =IFERROR(VLOOKUP(CONCATENATE(B43,$F$12,indicador_sel),salud!A:H,6,0),0) -> 66 | H43: =VLOOKUP(CONCATENATE(B43,$F$12,indicador_sel),salud!A:H,7,0) -> 114132 | I43: Tolima
B44: Valle del Cauca | C44: =VLOOKUP(CONCATENATE(B44,$C$12,estrato_sel),estrato!A:F,6,0) -> 32128.5 | D44: =IFERROR(VLOOKUP(CONCATENATE(B44,$C$12,indicador_sel),salud!A:H,6,0),0) -> 310 | E44: =VLOOKUP(CONCATENATE(B44,$C$12,indicador_sel),salud!A:H,7,0) -> 371599 | F44: =VLOOKUP(CONCATENATE(B44,$F$12,estrato_sel),estrato!A:F,6,0) -> 47549.16667 | G44: =IFERROR(VLOOKUP(CONCATENATE(B44,$F$12,indicador_sel),salud!A:H,6,0),0) -> 184 | H44: =VLOOKUP(CONCATENATE(B44,$F$12,indicador_sel),salud!A:H,7,0) -> 324298 | I44: Valle del Cauca
B45: Vaupés | C45: =VLOOKUP(CONCATENATE(B45,$C$12,estrato_sel),estrato!A:F,6,0) -> 100 | D45: =IFERROR(VLOOKUP(CONCATENATE(B45,$C$12,indicador_sel),salud!A:H,6,0),0) -> 4 | E45: =VLOOKUP(CONCATENATE(B45,$C$12,indicador_sel),salud!A:H,7,0) -> 3372 | F45: =VLOOKUP(CONCATENATE(B45,$F$12,estrato_sel),estrato!A:F,6,0) -> 135.5 | G45: =IFERROR(VLOOKUP(CONCATENATE(B45,$F$12,indicador_sel),salud!A:H,6,0),0) -> 6 | H45: =VLOOKUP(CONCATENATE(B45,$F$12,indicador_sel),salud!A:H,7,0) -> 3633 | I45: Vaupés
B46: Vichada | C46: =VLOOKUP(CONCATENATE(B46,$C$12,estrato_sel),estrato!A:F,6,0) -> 203.6666667 | D46: =IFERROR(VLOOKUP(CONCATENATE(B46,$C$12,indicador_sel),salud!A:H,6,0),0) -> 14 | E46: =VLOOKUP(CONCATENATE(B46,$C$12,indicador_sel),salud!A:H,7,0) -> 4964 | F46: =VLOOKUP(CONCATENATE(B46,$F$12,estrato_sel),estrato!A:F,6,0) -> 269.6666667 | G46: =IFERROR(VLOOKUP(CONCATENATE(B46,$F$12,indicador_sel),salud!A:H,6,0),0) -> 22 | H46: =VLOOKUP(CONCATENATE(B46,$F$12,indicador_sel),salud!A:H,7,0) -> 6064 | I46: Vichada
B47: Colombia | D47: =IFERROR(VLOOKUP(CONCATENATE(B47,$C$12,indicador_sel),salud!A:H,6,0),0) -> 3622 | E47: =VLOOKUP(CONCATENATE(B47,$C$12,indicador_sel),salud!A:H,7,0) -> 4325610 | G47: =IFERROR(VLOOKUP(CONCATENATE(B47,$F$12,indicador_sel),salud!A:H,6,0),0) -> 2460 | H47: =VLOOKUP(CONCATENATE(B47,$F$12,indicador_sel),salud!A:H,7,0) -> 3982247
C50: 2000-2005 | J50: 2010-2015
C51: Depto | D51: se | E51: casos | F51: pob | J51: se | K51: casos | L51: pob | M51: Depto
B52: Q1 | C52: Vaupés | D52: 100 | E52: 4 | F52: 3372 | H52: =B52 -> Q1 | J52: 135.5 | K52: 6 | L52: 3633 | M52: Vaupés
B53: Q1 | C53: Guainía | D53: 105.6666667 | E53: 8 | F53: 3252 | H53: =B53 -> Q1 | J53: 150 | K53: 6 | L53: 3520 | M53: Guainía
B54: Q1 | C54: Vichada | D54: 203.6666667 | E54: 14 | F54: 4964 | H54: Q1 | J54: 269.6666667 | K54: 22 | L54: 6064 | M54: Vichada
B55: Q1 | C55: Amazonas | D55: 231.8333333 | E55: 12 | F55: 8100 | H55: Q1 | J55: 326.5 | K55: 7 | L55: 8618 | M55: Amazonas
B56: Q1 | C56: Guaviare | D56: 314 | E56: 22 | F56: 9674 | H56: Q1 | J56: 363.6666667 | K56: 7 | L56: 7240 | M56: Guaviare
B57: Q1 | C57: San Andrés y Providencia | D57: 480.1666667 | E57: 6 | F57: 5928 | H57: Q1 | J57: 703.6666667 | K57: 2 | L57: 5095 | M57: San Andrés y Providencia
B58: Q1 | C58: Putumayo | D58: 1018.333333 | E58: 38 | F58: 29600 | H58: Q1 | J58: 1884.5 | K58: 78 | L58: 38543 | M58: Chocó
B59: Q1 | C59: Chocó | D59: 1084.166667 | E59: 95 | F59: 28046 | H59: Q1 | J59: 2136.666667 | K59: 53 | L59: 45108 | M59: Caquetá
B60: Q1 | C60: Caquetá | D60: 1433.5 | E60: 73 | F60: 41197 | H60: Q1 | J60: 2236 | K60: 36 | L60: 25939 | M60: Putumayo
B61: Q2 | C61: Sucre | D61: 2356.333333 | E61: 57 | F61: 83314 | H61: Q2 | J61: 3147 | K61: 14 | L61: 25633 | M61: Arauca
B62: Q2 | C62: Quindío | D62: 2763.333333 | E62: 32 | F62: 51833 | H62: Q2 | J62: 3607.666667 | K62: 15 | L62: 35934 | M62: Quindío
B63: Q2 | C63: Arauca | D63: 3005.333333 | E63: 30 | F63: 31182 | H63: Q2 | J63: 3807 | K63: 62 | L63: 89804 | M63: Sucre
B64: Q2 | C64: La Guajira | D64: 3492.5 | E64: 73 | F64: 62074 | H64: Q2 | J64: 5415.166667 | K64: 136 | L64: 81311 | M64: La Guajira
B65: Q2 | C65: Magdalena | D65: 4077.166667 | E65: 134 | F65: 117816 | H65: Q2 | J65: 6318.666667 | K65: 113 | L65: 135486 | M65: Magdalena
B66: Q2 | C66: Cauca | D66: 4352.166667 | E66: 162 | F66: 107200 | H66: Q2 | J66: 7033.333333 | K66: 33 | L66: 69087 | M66: Risaralda
B67: Q2 | C67: Nariño | D67: 4710.166667 | E67: 170 | F67: 129536 | H67: Q2 | J67: 7139.5 | K67: 33 | L67: 62084 | M67: Caldas
B68: Q2 | C68: Risaralda | D68: 4846.5 | E68: 50 | F68: 85948 | H68: Q2 | J68: 7221.166667 | K68: 86 | L68: 108734 | M68: Nariño
B69: Q3 | C69: Cesar | D69: 5192.833333 | E69: 89 | F69: 115867 | H69: Q3 | J69: 7476.5 | K69: 113 | L69: 106211 | M69: Cauca
B70: Q3 | C70: Norte de Santander | D70: 5259 | E70: 94 | F70: 133690 | H70: Q3 | J70: 7821.5 | K70: 74 | L70: 123434 | M70: Norte de Santander
B71: Q3 | C71: Caldas | D71: 5405.166667 | E71: 80 | F71: 91186 | H71: Q3 | J71: 8176.166667 | K71: 42 | L71: 120104 | M71: Huila
B72: Q3 | C72: Huila | D72: 5937.333333 | E72: 93 | F72: 129970 | H72: Q3 | J72: 8208.666667 | K72: 19 | L72: 41269 | M72: Casanare
B73: Q3 | C73: Córdoba | D73: 6297.666667 | E73: 146 | F73: 146885 | H73: Q3 | J73: 8567.5 | K73: 161 | L73: 159118 | M73: Córdoba
B74: Q3 | C74: Meta | D74: 6387.333333 | E74: 89 | F74: 90908 | H74: Q3 | J74: 9299.166667 | K74: 102 | L74: 123632 | M74: Cesar
B75: Q3 | C75: Tolima | D75: 7267.333333 | E75: 127 | F75: 149057 | H75: Q3 | J75: 10123 | K75: 66 | L75: 114132 | M75: Tolima
B76: Q3 | C76: Boyacá | D76: 8249.833333 | E76: 114 | F76: 129450 | H76: Q3 | J76: 13203.16667 | K76: 51 | L76: 99677 | M76: Boyacá
B77: Q4 | C77: Casanare | D77: 8879 | E77: 16 | F77: 34515 | H77: Q4 | J77: 18524.83333 | K77: 122 | L77: 210859 | M77: Bolívar
B78: Q4 | C78: Bolívar | D78: 11807.66667 | E78: 158 | F78: 185444 | H78: Q4 | J78: 19295.16667 | K78: 139 | L78: 230819 | M78: Atlántico
B79: Q4 | C79: Atlántico | D79: 12464.16667 | E79: 189 | F79: 247615 | H79: Q4 | J79: 20922.66667 | K79: 45 | L79: 92887 | M79: Meta
B80: Q4 | C80: Cundinamarca | D80: 15998.66667 | E80: 167 | F80: 213177 | H80: Q4 | J80: 25684.5 | K80: 103 | L80: 207543 | M80: Cundinamarca
B81: Q4 | C81: Santander | D81: 20125.5 | E81: 114 | F81: 206050 | H81: Q4 | J81: 32817.83333 | K81: 72 | L81: 184251 | M81: Santander
B82: Q4 | C82: Valle del Cauca | D82: 32128.5 | E82: 310 | F82: 371599 | H82: Q4 | J82: 47549.16667 | K82: 184 | L82: 324298 | M82: Valle del Cauca
B83: Q4 | C83: Antioquia | D83: 41657.33333 | E83: 373 | F83: 579644 | H83: Q4 | J83: 65591 | K83: 211 | L83: 458869 | M83: Antioquia
B84: Q4 | C84: Bogotá | D84: 80237.83333 | E84: 483 | F84: 697517 | H84: Q4 | J84: 125643 | K84: 227 | L84: 633311 | M84: Bogotá
B85: Colombia | F85: =SUM(F52:F84) -> 4325610 | L85: =SUM(L52:L84) -> 3982247
A88: 2. Brechas
B90: Cuantil | C90: =C12 -> p1 | E90: =F12 -> p2 | G90: =C12 -> p1 | H90: =F12 -> p2
C91: casos | D91: pob | E91: casos | F91: pob | G91: tasa | H91: tasa
B92: Q1 | C92: =SUMIF($B$52:$B$84,B92,$E$52:$E$84) -> 272 | D92: =SUMIF($B$52:$B$84,B92,$F$52:$F$84) -> 134133 | E92: =SUMIF($B$52:$B$84,B92,$K$52:$K$84) -> 217 | F92: =SUMIF($B$52:$B$84,B92,$L$52:$L$84) -> 143760 | G92: =C92/D92*$E$6 -> 202.7838041 | H92: =E92/F92*$E$6 -> 150.9460211
B93: Q2 | C93: =SUMIF($B$52:$B$84,B93,$E$52:$E$84) -> 708 | D93: =SUMIF($B$52:$B$84,B93,$F$52:$F$84) -> 668903 | E93: =SUMIF($B$52:$B$84,B93,$K$52:$K$84) -> 492 | F93: =SUMIF($B$52:$B$84,B93,$L$52:$L$84) -> 608073 | G93: =C93/D93*$E$6 -> 105.8449431 | H93: =E93/F93*$E$6 -> 80.91133795
B94: Q3 | C94: =SUMIF($B$52:$B$84,B94,$E$52:$E$84) -> 832 | D94: =SUMIF($B$52:$B$84,B94,$F$52:$F$84) -> 987013 | E94: =SUMIF($B$52:$B$84,B94,$K$52:$K$84) -> 628 | F94: =SUMIF($B$52:$B$84,B94,$L$52:$L$84) -> 887577 | G94: 84.29473573 | H94: 70.75442469
B95: Q4 | C95: =SUMIF($B$52:$B$84,B95,$E$52:$E$84) -> 1810 | D95: =SUMIF($B$52:$B$84,B95,$F$52:$F$84) -> 2535561 | E95: =SUMIF($B$52:$B$84,B95,$K$52:$K$84) -> 1103 | F95: =SUMIF($B$52:$B$84,B95,$L$52:$L$84) -> 2342837 | G95: 71.38459694 | H95: 47.07967306
C98: =C12 -> p1 | D98: =F12 -> p2
B99: Brecha absoluta | C99: =G92-G95 -> 131.3992072 | D99: =H92-H95 -> 103.8663481
B100: Brecha relativa | C100: =G92/G95 -> 2.840722128 | D100: =H92/H95 -> 3.206182442
A103: 3. Riesgo atribuible poblacional (RAP)
C105: =C12 -> p1 | D105: =F12 -> p2
B106: Tasa nacional | C106: =SUM(C92:C95)/SUM(D92:D95)*$E$6 -> 83.73385488 | D106: =SUM(E92:E95)/SUM(F92:F95)*$E$6 -> 61.27194019
B107: RAPA | C107: =C106-G95 -> 12.34925794 | D107: =D106-H95 -> 14.19226713
B108: RAPR | C108: =(C106-G95)/C106 -> 0.1474822574 | D108: =(D106-H95)/D106 -> 0.231627513
A110: 4. Curva de concentración
B112: Cálculos (expandir para ver gráficas)
B113: =C12 -> p1 | F113: =F12 -> p2 | J113: =C12 -> p1 | L113: =F12 -> p2 | N113: =C12 -> p1 | P113: =F12 -> p2 | R113: =C12 -> p1 | S113: =F12 -> p2 | T113: =C12 -> p1 | W113: =F12 -> p2 | Z113: =C12 -> p1 | AC113: =F12 -> p2 | AF113: p1 | AG113: p2 | AH113: p1 | AI113: p2
B114: Depto | C114: casos | D114: pob | E114: TASA | F114: Depto | G114: casos | H114: pob | I114: TASA | J114: casosAcum | K114: pobAcum | L114: casosAcum | M114: pobAcum | N114: casosAcum | O114: pobAcum | P114: casosAcum | Q114: pobAcum | R114: Ridit | S114: Ridit | T114: predicted | U114: residuals | V114: std_residuals | W114: predicted | X114: residuals | Y114: std_residuals | Z114: weigthed_y | AA114: weigthed_x1 | AB114: weigthed_x2 | AC114: weigthed_y | AD114: weigthed_x1 | AE114: weigthed_x2 | AF114: |xi-xbar| | AG114: |xi-xbar| | AH114: (yj+yj+1)*h | AI114: (yj+yj+1)*h
B115: =C52 -> Vaupés | C115: =E52 -> 4 | D115: 3372 | E115: =C115/D115*$E$6 -> 118.623962 | F115: =M52 -> Vaupés | G115: =K52 -> 6 | H115: =L52 -> 3633 | I115: =G115/H115*$E$6 -> 165.1527663 | J115: =C115 -> 4 | K115: =D115 -> 3372 | L115: =G115 -> 6 | M115: 3633 | N115: =J115/J$147 -> 0.001104362231 | O115: =K115/K$147 -> 0.0007795432321 | P115: 0.002459016393 | Q115: 0.0009122990111 | R115: =(1/2*(O115)) -> 0.000389771616 | S115: =(1/2*(Q115)) -> 0.0004561495055 | T115: =FORECAST(R115,E$115:E$147,R$115:R$147) -> 150.8969933 | U115: =E115-T115 -> -32.27303127 | V115: =U115/_xlfn.STDEV.S(U$115:U$147) -> -0.5590477831 | W115: =FORECAST(S115,I$115:I$147,S$115:S$147) -> 119.3783067 | X115: =I115-W115 -> 45.77445964 | Y115: =X115/_xlfn.STDEV.S(X$115:X$147) -> 0.7865613134 | Z115: =E115/ABS(V115) -> 212.1893076 | AA115: =1/ABS(V115) -> 1.788755863 | AB115: =R115/ABS(V115) -> 0.0006972062636 | AC115: =I115/ABS(Y115) -> 209.9680769 | AD115: =1/ABS(Y115) -> 1.271356705 | AE115: =S115/ABS(Y115) -> 0.0005799287326 | AF115: =ABS(E115-AVERAGE(E$115:E$147)) -> 3.426458251 | AG115: =ABS(I115-AVERAGE(I$115:I$147)) -> 77.14907185 | AH115: =(N115+N116)*D115/SUM(D$115:D$147) -> 3.443592411e-06 | AI115: =(P115+P116)*H115/SUM(H$115:H$147) -> 6.730074672e-06
B116: =C53 -> Guainía | C116: 8 | D116: 3252 | E116: =C116/D116*$E$6 -> 246.00246 | F116: =M53 -> Guainía | G116: 6 | H116: 3520 | I116: =G116/H116*$E$6 -> 170.4545455 | J116: =C116+J115 -> 12 | K116: =D116+K115 -> 6624 | L116: =G116+L115 -> 12 | M116: =H116+M115 -> 7153 | N116: =J116/J$147 -> 0.003313086692 | O116: =K116/K$147 -> 0.001531344712 | P116: =L116/L$147 -> 0.004918032787 | Q116: =M116/M$147 -> 0.001796222083 | R116: =O115+(1/2*(O116-O115)) -> 0.001155443972 | S116: =Q115+(1/2*(Q116-Q115)) -> 0.001354260547 | T116: 150.7852929 | U116: 95.21716713 | V116: =U116/_xlfn.STDEV.S(U$115:U$147) -> 1.649394064 | W116: =FORECAST(S116,I$115:I$147,S$115:S$147) -> 119.2667411 | X116: =I116-W116 -> 51.18780431 | Y116: =X116/_xlfn.STDEV.S(X$115:X$147) -> 0.879581035 | Z116: 149.1471719 | AA116: =1/ABS(V116) -> 0.6062832538 | AB116: =R116/ABS(V116) -> 0.000700526331 | AC116: =I116/ABS(Y116) -> 193.7906102 | AD116: =1/ABS(Y116) -> 1.136904913 | AE116: =S116/ABS(Y116) -> 0.001539665469 | AF116: 130.8049562 | AG116: =ABS(I116-AVERAGE(I$115:I$147)) -> 82.45085099 | AH116: 7.887481016e-06 | AI116: =(P116+P117)*H116/SUM(H$115:H$147) -> 1.666412348e-05
B117: Vichada | C117: 14 | D117: 4964 | E117: 282.0306205 | F117: Vichada | G117: 22 | H117: 6064 | I117: 362.7968338 | J117: 26 | K117: 11588 | L117: 34 | M117: 13217 | N117: 0.0071783545 | O117: 0.002678928521 | P117: 0.01393442623 | Q117: 0.003318980465 | R117: =O116+(1/2*(O117-O116)) -> 0.002105136617 | S117: =Q116+(1/2*(Q117-Q116)) -> 0.002557601274 | T117: 150.6467466 | U117: 131.3838739 | V117: 2.275889823 | W117: 119.1172592 | X117: 243.6795745 | Y117: 4.187246069 | Z117: 123.9210341 | AA117: 0.4393885811 | AB117: 0.0009249729909 | AC117: 86.64330393 | AD117: 0.2388204523 | AE117: 0.000610807493 | AF117: 166.8331167 | AG117: 274.7931393 | AH117: 2.027757145e-05 | AI117: 4.680609782e-05
B118: Amazonas | C118: 12 | D118: 8100 | E118: 148.1481481 | F118: Amazonas | G118: 7 | H118: 8618 | I118: 81.22534231 | J118: 38 | K118: 19688 | L118: 41 | M118: 21835 | N118: 0.01049144119 | O118: 0.004551496783 | P118: 0.01680327869 | Q118: 0.005483085303 | R118: 0.003615212652 | S118: 0.004401032884 | T118: 150.4264486 | U118: -2.27830042 | V118: -0.03946573188 | W118: 118.8882637 | X118: -37.66292141 | Y118: -0.6471774251 | Z118: 3753.842666 | AA118: 25.33843799 | AB118: 0.09160384162 | AC118: 125.5070699 | AD118: 1.545171326 | AE118: 0.006800349816 | AF118: 32.95064436 | AG118: 6.778352155 | AH118: 5.066584475e-05 | AI118: 7.893661091e-05
B119: Guaviare | C119: 22 | D119: 9674 | E119: 227.4136862 | F119: Guaviare | G119: 7 | H119: 7240 | I119: 96.68508287 | J119: 60 | K119: 29362 | L119: 48 | M119: 29075 | N119: 0.01656543346 | O119: 0.006787944359 | P119: 0.01967213115 | Q119: 0.007301154348 | R119: 0.005669720571 | S119: 0.006392119826 | T119: 150.1267259 | U119: 77.2869603 | V119: 1.338799057 | W119: 118.6409261 | X119: -21.95584321 | Y119: -0.3772762585 | Z119: 169.8639426 | AA119: 0.7469380823 | AB119: 0.00423493021 | AC119: 256.271315 | AD119: 2.650577601 | AE119: 0.01694280963 | AF119: 112.2161824 | AG119: 8.681388411 | AH119: 7.780021938e-05 | AI119: 7.30208059e-05
B120: San Andrés y Providencia | C120: 6 | D120: 5928 | E120: 101.2145749 | F120: San Andrés y Providencia | G120: 2 | H120: 5095 | I120: 39.25417076 | J120: 66 | K120: 35290 | L120: 50 | M120: 34170 | N120: 0.01822197681 | O120: 0.00815838691 | P120: 0.02049180328 | Q120: 0.008580582771 | R120: 0.007473165634 | S120: 0.00794086856 | T120: 149.8636296 | U120: -48.64905467 | V120: -0.8427205347 | W120: 118.4485368 | X120: -79.19436601 | Y120: -1.360829271 | Z120: 120.1045551 | AA120: 1.186633004 | AB120: 0.008867904989 | AC120: 28.84577191 | AD120: 0.7348460394 | AE120: 0.00583531581 | AF120: 13.98292889 | AG120: 48.74952371 | AH120: 6.432226216e-05 | AI120: 9.333535218e-05
B121: Putumayo | C121: 38 | D121: 29600 | E121: 128.3783784 | F121: Chocó | G121: 78 | H121: 38543 | I121: 202.3713774 | J121: 104 | K121: 64890 | L121: 128 | M121: 72713 | N121: 0.028713418 | O121: 0.01500135241 | P121: 0.05245901639 | Q121: 0.01825928929 | R121: 0.01157986966 | S121: 0.01341993603 | T121: 149.2645214 | U121: -20.88614306 | V121: -0.3617990475 | W121: 117.7679138 | X121: 84.60346367 | Y121: 1.453776014 | Z121: 354.8333785 | AA121: 2.763965264 | AB121: 0.0320063575 | AC121: 139.2039595 | AD121: 0.6878638732 | AE121: 0.009231089176 | AF121: 13.18087459 | AG121: 114.367683 | AH121: 0.0005724512829 | AI121: 0.001225705047
B122: Chocó | C122: 95 | D122: 28046 | E122: 338.7292305 | F122: Caquetá | G122: 53 | H122: 45108 | I122: 117.4957879 | J122: 199 | K122: 92936 | L122: 181 | M122: 117821 | N122: 0.05494202098 | O122: 0.02148506222 | P122: 0.07418032787 | Q122: 0.02958656256 | R122: 0.01824320732 | S122: 0.02392292593 | T122: 148.2924378 | U122: 190.4367928 | V122: 3.298830715 | W122: 116.463207 | X122: 1.032580937 | Y122: 0.01774326173 | Z122: 102.6816044 | AA122: 0.3031377134 | AB122: 0.005530204152 | AC122: 6621.994856 | AD122: 56.35942339 | AE122: 1.348282311 | AF122: 223.5317268 | AG122: 29.49209342 | AH122: 0.0008431328883 | AI122: 0.001847645394
B123: Caquetá | C123: 73 | D123: 41197 | E123: 177.1973687 | F123: Putumayo | G123: 36 | H123: 25939 | I123: 138.7871545 | J123: 272 | K123: 134133 | L123: 217 | M123: 143760 | N123: 0.0750966317 | O123: 0.03100903688 | P123: 0.08893442623 | Q123: 0.03610022181 | R123: 0.02624704955 | S123: 0.03284339219 | T123: 147.1247941 | U123: 30.07257464 | V123: 0.5209304959 | W123: 115.3550851 | X123: 23.43206942 | Y123: 0.402642859 | Z123: 340.1554912 | AA123: 1.919641887 | AB123: 0.05038493572 | AC123: 344.6904655 | AD123: 2.483590551 | AE123: 0.0815695385 | AF123: 61.99986495 | AG123: 50.78346002 | AH123: 0.001580317164 | AI123: 0.00119595055
B124: Sucre | C124: 57 | D124: 83314 | E124: 68.41587248 | F124: Arauca | G124: 14 | H124: 25633 | I124: 54.61709515 | J124: 329 | K124: 217447 | L124: 231 | M124: 169393 | N124: 0.09083379348 | O124: 0.05026967295 | P124: 0.09467213115 | Q124: 0.04253704002 | R124: 0.04063935491 | S124: 0.03931863091 | T124: 145.025167 | U124: -76.60929447 | V124: -1.327060228 | W124: 114.5507152 | X124: -59.93362009 | Y124: -1.029863974 | Z124: 51.55445927 | AA124: 0.7535453016 | AB124: 0.03062359496 | AC124: 53.03330974 | AD124: 0.9710020204 | AE124: 0.03817847006 | AF124: 46.78163131 | AG124: 33.38659931 | AH124: 0.003669199031 | AI124: 0.001258345199
B125: Quindío | C125: 32 | D125: 51833 | E125: 61.73673143 | F125: Quindío | G125: 15 | H125: 35934 | I125: 41.74319586 | J125: 361 | K125: 269280 | L125: 246 | M125: 205327 | N125: 0.09966869133 | O125: 0.06225249156 | P125: 0.1008196721 | Q125: 0.05156058878 | R125: 0.05626108225 | S125: 0.0470488144 | T125: 142.7461851 | U125: -81.00945367 | V125: -1.40328174 | W125: 113.5904532 | X125: -71.8472573 | Y125: -1.234580889 | Z125: 43.9945377 | AA125: 0.7126152726 | AB125: 0.04009250647 | AC125: 33.81163295 | AD125: 0.809991479 | AE125: 0.03810913876 | AF125: 53.46077236 | AG125: 46.2604986 | AH125: 0.00248787399 | AI125: 0.002048789351
B126: Arauca | C126: 30 | D126: 31182 | E126: 96.20935155 | F126: Sucre | G126: 62 | H126: 89804 | I126: 69.03924101 | J126: 391 | K126: 300462 | L126: 308 | M126: 295131 | N126: 0.1079514081 | O126: 0.06946118582 | P126: 0.1262295082 | Q126: 0.07411167615 | R126: 0.06585683869 | S126: 0.06283613246 | T126: 141.3463044 | U126: -45.13695283 | V126: -0.7818823465 | W126: 111.6293143 | X126: -42.59007332 | Y126: -0.7318426971 | Z126: 123.0483742 | AA126: 1.278964801 | AB126: 0.08422857862 | AC126: 94.33617536 | AD126: 1.366413854 | AE126: 0.08586016191 | AF126: 18.98815224 | AG126: 18.96445345 | AH126: 0.001701665819 | AI126: 0.006950171187
B127: La Guajira | C127: 73 | D127: 62074 | E127: 117.6015723 | F127: La Guajira | G127: 136 | H127: 81311 | I127: 167.2590424 | J127: 464 | K127: 362536 | L127: 444 | M127: 376442 | N127: 0.1281060188 | O127: 0.08381153178 | P127: 0.1819672131 | Q127: 0.09453004799 | R127: 0.0766363588 | S127: 0.08432086207 | T127: 139.7737298 | U127: -22.17215751 | V127: -0.3840759611 | W127: 108.9604293 | X127: 58.29861318 | Y127: 1.00176898 | Z127: 306.1935248 | AA127: 2.603651624 | AB127: 0.1995343801 | AC127: 166.963687 | AD127: 0.9982341436 | AE127: 0.08417196353 | AF127: 2.404068527 | AG127: 79.25534798 | AH127: 0.004207638711 | AI127: 0.008376553365
B128: Magdalena | C128: 134 | D128: 117816 | E128: 113.7366741 | F128: Magdalena | G128: 113 | H128: 135486 | I128: 83.40345128 | J128: 598 | K128: 480352 | L128: 557 | M128: 511928 | N128: 0.1651021535 | O128: 0.1110483839 | P128: 0.2282786885 | Q128: 0.1285525483 | R128: 0.09742995786 | S128: 0.1115412982 | T128: 136.7402474 | U128: -23.00357328 | V128: -0.3984781145 | W128: 105.5790409 | X128: -22.17558958 | Y128: -0.3810522506 | Z128: 285.4276559 | AA128: 2.509548112 | AB128: 0.2445051668 | AC128: 218.8766794 | AD128: 2.624312016 | AE128: 0.2927191691 | AF128: 1.460829654 | AG128: 4.600243183 | AH128: 0.01021193959 | AI128: 0.0159933639
B129: Cauca | C129: 162 | D129: 107200 | E129: 151.119403 | F129: Risaralda | G129: 33 | H129: 69087 | I129: 47.76586044 | J129: 760 | K129: 587552 | L129: 590 | M129: 581015 | N129: 0.2098288239 | O129: 0.1358310157 | P129: 0.2418032787 | Q129: 0.1459012964 | R129: 0.1234396998 | S129: 0.1372269224 | T129: 132.9458059 | U129: 18.17359705 | V129: 0.3148111206 | W129: 102.3883105 | X129: -54.62245007 | Y129: -0.9385999617 | Z129: 480.0319718 | AA129: 3.176507863 | AB129: 0.3921071771 | AC129: 50.89054165 | AD129: 1.065416621 | AE129: 0.146203844 | AF129: 35.9218992 | AG129: 40.23783403 | AH129: 0.01156340358 | AI129: 0.008624603042
B130: Nariño | C130: 170 | D130: 129536 | E130: 131.2376482 | F130: Caldas | G130: 33 | H130: 62084 | I130: 53.15379164 | J130: 930 | K130: 717088 | L130: 623 | M130: 643099 | N130: 0.2567642187 | O130: 0.1657773123 | P130: 0.2553278689 | Q130: 0.1614914896 | R130: 0.150804164 | S130: 0.153696393 | T130: 128.9537303 | U130: 2.283917948 | V130: 0.0395630412 | W130: 100.342433 | X130: -47.1886414 | Y130: -0.8108617785 | Z130: 3317.177958 | AA130: 25.27611553 | AB130: 3.811743472 | AC130: 65.5522224 | AD130: 1.233255811 | AE130: 0.1895469698 | AF130: 16.04014443 | AG130: 34.84990283 | AH130: 0.01579166938 | AI130: 0.008510712012
B131: Risaralda | C131: 50 | D131: 85948 | E131: 58.17471029 | F131: Nariño | G131: 86 | H131: 108734 | I131: 79.09209631 | J131: 980 | K131: 803036 | L131: 709 | M131: 751833 | N131: 0.2705687465 | O131: 0.1856468799 | P131: 0.2905737705 | Q131: 0.1887961746 | R131: 0.1757120961 | S131: 0.1751438321 | T131: 125.3200268 | U131: -67.14531648 | V131: -1.163120998 | W131: 97.67818028 | X131: -18.58608397 | Y131: -0.3193723036 | Z131: 50.01604339 | AA131: 0.8597557795 | AB131: 0.1510694902 | AC131: 247.6485764 | AD131: 3.131141896 | AE131: 0.5484001905 | AF131: 57.0227935 | AG131: 8.911598154 | AH131: 0.01124040416 | AI131: 0.0171325708
B132: Cesar | C132: 89 | D132: 115867 | E132: 76.8122071 | F132: Cauca | G132: 113 | H132: 106211 | I132: 106.3919933 | J132: 1069 | K132: 918903 | L132: 822 | M132: 858044 | N132: 0.2951408062 | O132: 0.2124331597 | P132: 0.3368852459 | Q132: 0.2154672977 | R132: 0.1990400198 | S132: 0.2021317362 | T132: 121.9168234 | U132: -45.10461631 | V132: -0.781322199 | W132: 94.32567757 | X132: 12.06631572 | Y132: 0.2073404518 | Z132: 98.31053975 | AA132: 1.27988172 | AB132: 0.2547476829 | AC132: 513.1270448 | AD132: 4.822985536 | AE132: 0.9748784399 | AF132: 38.38529669 | AG132: 18.38829883 | AH132: 0.01650661972 | AI132: 0.01877909406
B133: Norte de Santander | C133: 94 | D133: 133690 | E133: 70.31191563 | F133: Norte de Santander | G133: 74 | H133: 123434 | I133: 59.95106697 | J133: 1163 | K133: 1052593 | L133: 896 | M133: 981478 | N133: 0.3210933186 | O133: 0.2433397833 | P133: 0.3672131148 | Q133: 0.246463366 | R133: 0.2278864715 | S133: 0.2309653319 | T133: 117.7085474 | U133: -47.39663178 | V133: -0.8210255091 | W133: 90.74389859 | X133: -30.79283162 | Y133: -0.5291258547 | Z133: 85.63913648 | AA133: 1.217988953 | AB133: 0.2775632048 | AC133: 113.3020933 | AD133: 1.889909539 | AE133: 0.4365035839 | AF133: 44.88558816 | AG133: 28.0526275 | AH133: 0.02053046282 | AI133: 0.02329786445
B134: Caldas | C134: 80 | D134: 91186 | E134: 87.73276599 | F134: Huila | G134: 42 | H134: 120104 | I134: 34.96969293 | J134: 1243 | K134: 1143779 | L134: 938 | M134: 1101582 | N134: 0.3431805632 | O134: 0.2644202783 | P134: 0.3844262295 | Q134: 0.276623223 | R134: 0.2538800308 | S134: 0.2615432945 | T134: 113.9164667 | U134: -26.18370075 | V134: -0.4535656951 | W134: 86.94543012 | X134: -51.97573719 | Y134: -0.8931204087 | Z134: 193.4290158 | AA134: 2.204752279 | AB134: 0.5597425765 | AC134: 39.15451107 | AD134: 1.119669857 | AE134: 0.2928421431 | AF134: 27.46473779 | AG134: 53.03400153 | AH134: 0.01501010398 | AI134: 0.02342333155
B135: Huila | C135: =E72 -> 93 | D135: 129970 | E135: 71.55497422 | F135: Casanare | G135: 19 | H135: 41269 | I135: 46.03940003 | J135: 1336 | K135: 1273749 | L135: 957 | M135: 1142851 | N135: 0.3688569851 | O135: 0.2944669076 | P135: 0.3922131148 | Q135: 0.2869864677 | R135: 0.2794435929 | S135: 0.2818048454 | T135: 110.1871164 | U135: -38.63214217 | V135: -0.6692031268 | W135: 84.42849128 | X135: -38.38909124 | Y135: -0.6596554992 | Z135: 106.9256424 | AA135: 1.494314596 | AB135: 0.4175766396 | AC135: 69.79309668 | AD135: 1.515942793 | AE135: 0.4272000244 | AF135: 43.64252956 | AG135: 41.96429443 | AH135: 0.0233769744 | AI135: 0.008813005201
B136: Córdoba | C136: 146 | D136: 146885 | E136: 99.39748783 | F136: Córdoba | G136: 161 | H136: 159118 | I136: 101.18277 | J136: 1482 | K136: 1420634 | L136: 1118 | M136: 1301969 | N136: 0.4091662065 | O136: 0.3284239679 | P136: 0.4581967213 | Q136: 0.3269433061 | R136: 0.3114454378 | S136: 0.3069648869 | T136: 105.5185146 | U136: -6.121026793 | V136: -0.106031145 | W136: 81.30305007 | X136: 19.87971995 | Y136: 0.3416013812 | Z136: 937.4367107 | AA136: 9.431191181 | AB136: 2.937301466 | AC136: 296.2012908 | AD136: 2.927388632 | AE136: 0.8986055205 | AF136: 15.80001596 | AG136: 13.17907556 | AH136: 0.02862255808 | AI136: 0.03828651159
B137: Meta | C137: 89 | D137: 90908 | E137: 97.90117481 | F137: Cesar | G137: 102 | H137: 123632 | I137: 82.50291187 | J137: 1571 | K137: 1511542 | L137: 1220 | M137: 1425601 | N137: 0.4337382662 | O137: 0.3494401946 | P137: 0.5 | Q137: 0.3579890951 | R137: 0.3389320813 | S137: 0.3424662006 | T137: 101.5086148 | U137: -3.607439968 | V137: -0.06248967754 | W137: 76.89299103 | X137: 5.609920842 | Y137: 0.09639757061 | Z137: 1566.677549 | AA137: 16.00264299 | AB137: 5.423809093 | AC137: 855.8609034 | AD137: 10.37370541 | AE137: 3.552643479 | AF137: 17.29632898 | AG137: 5.500782595 | AH137: 0.01896798586 | AI137: 0.03188555212
B138: Tolima | C138: 127 | D138: 149057 | E138: 85.20230516 | F138: Tolima | G138: 66 | H138: 114132 | I138: 57.82777836 | J138: 1698 | K138: 1660599 | L138: 1286 | M138: 1539733 | N138: 0.468801767 | O138: 0.3838993807 | P138: 0.5270491803 | Q138: 0.3866492962 | R138: 0.3666697876 | S138: 0.3723191957 | T138: 97.46208854 | U138: -12.25978338 | V138: -0.2123694134 | W138: 73.18457979 | X138: -15.35680142 | Y138: -0.2638822171 | Z138: 401.1985709 | AA138: 4.708776014 | AB138: 1.726565901 | AC138: 219.1423848 | AD138: 3.789569494 | AE138: 1.410929466 | AF138: 29.99519863 | AG138: 30.1759161 | AH138: 0.03339363424 | AI138: 0.03080971622
B139: Boyacá | C139: 114 | D139: 129450 | E139: 88.06488992 | F139: Boyacá | G139: 51 | H139: 99677 | I139: 51.1652638 | J139: 1812 | K139: 1790049 | L139: 1337 | M139: 1639410 | N139: 0.5002760906 | O139: 0.4138257957 | P139: 0.5479508197 | Q139: 0.4116796371 | R139: 0.3988625882 | S139: 0.3991644667 | T139: 92.76562912 | U139: -4.700739198 | V139: -0.08142829243 | W139: 69.8497953 | X139: -18.6845315 | Y139: -0.3210639677 | Z139: 1081.502354 | AA139: 12.28074383 | AB139: 4.89832927 | AC139: 159.3615882 | AD139: 3.114644122 | AE139: 1.24325526 | AF139: 27.13261387 | AG139: 36.83843066 | AH139: 0.03007513821 | AI139: 0.02868230868
B140: Casanare | C140: 16 | D140: 34515 | E140: 46.35665653 | F140: Bolívar | G140: 122 | H140: 210859 | I140: 57.858569 | J140: 1828 | K140: 1824564 | L140: 1459 | M140: 1850269 | N140: 0.5046935395 | O140: 0.4218050171 | P140: 0.5979508197 | Q140: 0.4646293914 | R140: 0.4178154064 | S140: 0.4381545143 | T140: 90.00068975 | U140: -43.64403322 | V140: -0.7560213299 | W140: 65.0063573 | X140: -7.147788301 | Y140: -0.1228233779 | Z140: 61.31659874 | AA140: 1.322714003 | AB140: 0.5526502889 | AC140: 471.0713058 | AD140: 8.141772497 | AE140: 3.567354374 | AF140: 68.84084726 | AG140: 30.14512547 | AH140: 0.008402195065 | AI140: 0.06633909784
B141: Bolívar | C141: 158 | D141: 185444 | E141: 85.20092319 | F141: Atlántico | G141: 139 | H141: 230819 | I141: 60.22034581 | J141: 1986 | K141: 2010008 | L141: 1598 | M141: 2081088 | N141: 0.5483158476 | O141: 0.464676196 | P141: 0.6549180328 | Q141: 0.5225913912 | R141: 0.4432406065 | S141: 0.4936103913 | T141: 86.29152438 | U141: -1.090601195 | V141: -0.01889187833 | W141: 58.11749414 | X141: 2.102851672 | Y141: 0.03613416273 | Z141: 4509.923349 | AA141: 52.93279908 | AB141: 23.46196597 | AC141: 1666.576482 | AD141: 27.67464152 | AE141: 13.66049063 | AF141: 29.9965806 | AG141: 27.78334865 | AH141: 0.04925095948 | AI141: 0.07698968914
B142: Atlántico | C142: 189 | D142: 247615 | E142: 76.32817075 | F142: Meta | G142: 45 | H142: 92887 | I142: 48.44596122 | J142: 2175 | K142: 2257623 | L142: 1643 | M142: 2173975 | N142: 0.600496963 | O142: 0.5219201454 | P142: 0.6733606557 | Q142: 0.5459166646 | R142: 0.4932981707 | S142: 0.5342540279 | T142: 78.98885687 | U142: -2.660686125 | V142: -0.04608958692 | W142: 53.06864331 | X142: -4.622682087 | Y142: -0.07943344219 | Z142: 1656.08277 | AA142: 21.69687487 | AB142: 10.70302868 | AC142: 609.8937662 | AD142: 12.58915606 | AE142: 6.725807332 | AF142: 38.86933304 | AG142: 39.55773324 | AH142: 0.07138898936 | AI142: 0.03239727522
B143: Cundinamarca | C143: 167 | D143: 213177 | E143: 78.33865755 | F143: Cundinamarca | G143: 103 | H143: 207543 | I143: 49.6282698 | J143: 2342 | K143: 2470800 | L143: 1746 | M143: 2381518 | N143: 0.6466040861 | O143: 0.5712026743 | P143: 0.7155737705 | Q143: 0.5980337232 | R143: 0.5465614098 | S143: 0.5719751939 | T143: 71.21852819 | U143: 7.120129353 | V143: 0.1233380434 | W143: 48.38282885 | X143: 1.245440954 | Y143: 0.0214009227 | Z143: 635.1540482 | AA143: 8.107798475 | AB143: 4.431409765 | AC143: 2318.978041 | AD143: 46.72695725 | AE143: 26.72666043 | AF143: 36.85884624 | AG143: 38.37542466 | AH143: 0.06528370344 | AI143: 0.07612508058
B144: Santander | C144: 114 | D144: 206050 | E144: 55.32637709 | F144: Santander | G144: 72 | H144: 184251 | I144: 39.07712848 | J144: 2456 | K144: 2676850 | L144: 1818 | M144: 2565769 | N144: 0.6780784097 | O144: 0.6188375744 | P144: 0.7450819672 | Q144: 0.6443018226 | R144: 0.5950201243 | S144: 0.6211677729 | T144: 64.1491095 | U144: -8.822732403 | V144: -0.1528312897 | W144: 42.27200773 | X144: -3.194879245 | Y144: -0.05489892038 | Z144: 362.0094891 | AA144: 6.543162739 | AB144: 3.893313506 | AC144: 711.8014017 | AD144: 18.21529445 | AE144: 11.31475389 | AF144: 59.8711267 | AG144: 48.92656598 | AH144: 0.06867737384 | AI144: 0.07243612282
B145: Valle del Cauca | C145: 310 | D145: 371599 | E145: 83.42326002 | F145: Valle del Cauca | G145: 184 | H145: 324298 | I145: 56.73793856 | J145: 2766 | K145: 3048449 | L145: 2002 | M145: 2890067 | N145: 0.7636664826 | O145: 0.704744302 | P145: 0.8204918033 | Q145: 0.7257377556 | R145: 0.6617909382 | S145: 0.6850197891 | T145: 54.40822295 | U145: 29.01503707 | V145: 0.5026113604 | W145: 34.34015586 | X145: 22.3977827 | Y145: 0.3848702861 | Z145: 165.9796547 | AA145: 1.989608829 | AB145: 1.316705093 | AC145: 147.4209379 | AD145: 2.598278007 | AE145: 1.779871852 | AF145: 31.77424377 | AG145: 31.2657559 | AH145: 0.1400550046 | AI145: 0.1406772368
B146: Antioquia | C146: 373 | D146: 579644 | E146: 64.34984232 | F146: Antioquia | G146: 211 | H146: 458869 | I146: 45.98262249 | J146: 3139 | K146: 3628093 | L146: 2213 | M146: 3348936 | N146: 0.8666482606 | O146: 0.8387471362 | P146: 0.9069672131 | Q146: 0.8409664192 | R146: 0.7717457191 | S146: 0.7833520874 | T146: 38.36742632 | U146: 25.982416 | V146: 0.4500789512 | W146: 22.12507996 | X146: 23.85754253 | Y146: 0.4099539379 | Z146: 142.9745651 | AA146: 2.221832408 | AB146: 1.71468965 | AC146: 112.1653392 | AD146: 2.439298437 | AE146: 1.910829522 | AF146: 50.84766147 | AG146: 42.02107197 | AH146: 0.2501361575 | AI146: 0.2197372835
B147: Bogotá | C147: 483 | D147: 697517 | E147: 69.24562412 | F147: Bogotá | G147: 227 | H147: 633311 | I147: 35.84336921 | J147: 3622 | K147: 4325610 | L147: 2440 | M147: 3982247 | N147: 1 | O147: 1 | P147: 1 | Q147: 1 | R147: 0.9193735681 | S147: 0.9204832096 | T147: 16.83067927 | U147: 52.41494485 | V147: 0.9079549572 | W147: 5.090320333 | X147: 30.75304888 | Y147: 0.5284422516 | Z147: 76.26548385 | AA147: 1.101376221 | AB147: 1.012576187 | AC147: 67.82835609 | AD147: 1.892354362 | AE147: 1.741880417 | AF147: 45.95187967 | AG147: 52.16032525 | AH147: =(N147+1)*D147/SUM(D$115:D$147) -> 0.3225057275 | AI147: =(P147+1)*H147/SUM(H$115:H$147) -> 0.3180671616
C149: Índice de concentración | E149: =SUM(AH115:AH147)-1 -> 0.2262776807 | I149: Índice de concentración | K149: =SUM(AI115:AI147)-1 -> 0.2802262343
A172: 5. Índice de intesidad de la pendiente
C174: =C12 -> p1 | D174: =F12 -> p2
B175: B1coef | C175: =INDEX(LINEST($Z$115:$Z$147,$AA$115:$AB$147,FALSE),2) -> 149.526172 | D175: =INDEX(LINEST($AC$115:$AC$147,$AD$115:$AE$147,FALSE),2) -> 120.3585282
B176: B2coef | C176: =INDEX(LINEST($Z$115:$Z$147,$AA$115:$AB$147,FALSE),1) -> -145.7367253 | D176: =INDEX(LINEST($AC$115:$AC$147,$AD$115:$AE$147,FALSE),1) -> -124.5997682
C177: =C175+(C176*R115) -> 149.469368 | D177: =D175+(D176*S115) -> 120.3016921
B178: IRD | C178: =1+(ABS(C176)/C177) -> 1.975027374 | D178: =1+(ABS(D176)/D177) -> 2.035727479
B179: IRDm | C179: =(C175+(C176*R147))/C177 -> 0.1039656425 | D179: =(D175+(D176*S147))/D177 -> 0.04710269269
B180: Índice de Hoover | C180: =1/2*(SUM(AF115:AF147)/SUM(E115:E147)) -> 0.2102607472 | D180: =1/2*(SUM(AG115:AG147)/SUM(I115:I147)) -> 0.2577510279
A182: 6. Resúmen resultados
C184: =C11 -> 2000-2005 | D184: =F11 -> 2010-2015
B185: Evento | C185: Mortalidad Materna | D185: Mortalidad Materna
B186: Estratificador | C186: PIB
B187: Brecha absoluta de desigualdad | C187: 131.3992072 | D187: 103.8663481
B188: Brecha relativa de desigualdad | C188: 2.840722128 | D188: 3.206182442
B189: Riesgo atribuible poblacional absoluto | C189: 12.34925794 | D189: 14.19226713
B190: Riesgo atribuible poblacional relativo | C190: 0.1474822574 | D190: 0.231627513
B191: Indice de concentración | C191: 0.2262776807 | D191: 0.2802262343
B192: Índice relativo de desigualdad | C192: 1.975027374 | D192: 2.035727479
B193: Índice relativo de desigualdad Modificado | C193: 0.1039656425 | D193: 0.04710269269
B194: Índice de Hoover | C194: 0.2102607472 | D194: 0.2577510279
A196: 7. Tabla resumen
B198: Indicador de salud/Estratificador | C198: Periodo de análisis | E198: Cambio en el tiempo
C199: =C184 -> 2000-2005 | D199: =D184 -> 2010-2015
B200: =event_res -> Mortalidad Materna
B201: Ruralidad
B202: Promedio/1 | C202: =C106 -> 83.73385488 | D202: =D106 -> 61.27194019 | E202: =(D202-C202)/C202 -> -0.2682536797
B203: Desviación estándar | C203: =STDEVA(E115:E147) -> 68.27299466 | D203: =STDEVA(I115:I147) -> 66.34759648 | E203: =(D203-C203)/C203 -> -0.02820146075
B204: Máximo | C204: =MAX(E115:E147) -> 338.7292305 | D204: =MAX(I115:I147) -> 362.7968338 | E204: 0.07105263158
B205: Percentil .75 | C205: =PERCENTILE(E115:E147,0.75) -> 128.3783784 | D205: =PERCENTILE(I115:I147,0.75) -> 101.18277 | E205: -0.2118394756
B206: Percentil .5 (Mediana) | C206: =PERCENTILE(E115:E147,0.5) -> 88.06488992 | D206: =PERCENTILE(I115:I147,0.5) -> 59.95106697 | E206: -0.319239858
B207: Percentil .25 | C207: =PERCENTILE(E115:E147,0.25) -> 71.55497422 | D207: =PERCENTILE(I115:I147,0.25) -> 48.44596122 | E207: -0.3229546688
B208: Mínimo | C208: =MIN(E115:E147) -> 46.35665653 | D208: =MIN(I115:I147) -> 34.96969293 | E208: -0.2456381553
B209: Rango | C209: =C204-C208 -> 292.372574 | D209: =D204-D208 -> 327.8271408 | E209: 0.1212650227
B210: Brecha absoluta simple | C210: =gaps_res -> 131.3992072 | D210: =D187 -> 103.8663481 | E210: -0.2095359607
B211: Brecha relativa simple | C211: =C188 -> 2.840722128 | D211: =D188 -> 3.206182442 | E211: 0.1286504971
B212: Brecha absoluta ponderada | C212: =C210*(D92/D95) -> 6.951112538 | D212: =D210*(F92/F95) -> 6.373395247 | E212: -0.08311148583
B213: Brecha relativa ponderada | C213: =C211*(D92/D95) -> 0.1502762431 | D213: =D211*(F92/F95) -> 0.1967361741 | E213: 0.3091635113
B214: Promedio ponderado del indicador | C214: =C202 -> 83.73385488 | D214: =D202 -> 61.27194019 | E214: -0.2682536797
B215: RAP | C215: =pobR_res -> 12.34925794 | D215: =D189 -> 14.19226713 | E215: 0.1492404803
B216: RAP % | C216: =C190 -> 0.1474822574 | D216: =D190 -> 0.231627513 | E216: 0.5705449396
B217: Índice de la pendiente modificado | C217: =C179 -> 0.1039656425 | D217: =D179 -> 0.04710269269 | E217: -0.54693982
B218: Índice de Hoover | C218: =C180 -> 0.2102607472 | D218: =D180 -> 0.2577510279 | E218: 0.2258637493
B219: Índice de concentración | C219: =C191 -> 0.2262776807 | D219: =D191 -> 0.2802262343 | E219: 0.2384174764

Sheet dropdown
A1: salud | B1: p1 | C1: p2 | D1: estrato | E1: sentido | F1: periodo
A2: Accidente de Transito Terrestre | B2: 2000-2005 | C2: 2010-2015 | D2: IDH | E2: Positivo | F2: 2005
A3: Homicidio | B3: 2000-2005 | C3: 2010-2015 | D3: IPM | E3: Negativo | F3: 2015
A4: Mortalidad Materna | B4: 2000-2005 | C4: 2010-2015 | D4: PIB | E4: Positivo | F4: 2000-2005
A5: Suicidio | B5: 2000-2005 | C5: 2010-2015 | D5: PIBpc | E5: Positivo | F5: 2010-2015
A6: Tasa de Fecundidad | B6: 2000-2005 | C6: 2010-2015 | D6: Ruralidad | E6: Negativo
A7: Tasa de mortalidad <1 | B7: 2005-2010 | C7: 2011-2015 | D7: IRCA | E7: Negativo
A8: Tasa de mortalidad IRA <5 | B8: 2005-2010 | C8: 2011-2015 | D8: PIB-Percápita | E8: Positivo
A9: Tasa de mortalidad DNT <5 | B9: 2005-2010 | C9: 2011-2015 | D9: Embarazadas >4 CPN | E9: Positivo
A10: BPN | B10: 2005-2010 | C10: 2011-2015
A11: Mortalidad EDA<5 años | B11: 2005-2010 | C11: 2011-2015
A12: Tasa de mortalidad en niñez | B12: 2005-2010 | C12: 2011-2015
A13: Tasa de Mortalidad Neonatal | B13: 2005-2010 | C13: 2011-2015
A14: Nacimientos por cesarea | B14: 2005-2010 | C14: 2011-2015

Sheet estrato
A1: D&P&I | B1: depto | C1: per | D1: periodo | E1: indicador | F1: valor
A2: =CONCATENATE(B2,C2,E2) -> Antioquiap1IPM | B2: Antioquia | C2: p1 | D2: 2000-2005 | E2: IPM | F2: 0.4429
A3: =CONCATENATE(B3,C3,E3) -> Antioquiap2IPM | B3: Antioquia | C3: p2 | D3: 2010-2015 | E3: IPM | F3: 0.4477
A4: Atlánticop1IPM | B4: Atlántico | C4: p1 | D4: 2000-2005 | E4: IPM | F4: 0.4732749455
A5: Atlánticop2IPM | B5: Atlántico | C5: p2 | D5: 2010-2015 | E5: IPM | F5: 0.4731
A6: Bogotáp1IPM | B6: Bogotá | C6: p1 | D6: 2000-2005 | E6: IPM | F6: 0.2430188
A7: Bogotáp2IPM | B7: Bogotá | C7: p2 | D7: 2010-2015 | E7: IPM | F7: 0.2430188
A8: Bolívarp1IPM | B8: Bolívar | C8: p1 | D8: 2000-2005 | E8: IPM | F8: 0.628411769
A9: Bolívarp2IPM | B9: Bolívar | C9: p2 | D9: 2010-2015 | E9: IPM | F9: 0.6342
A10: Boyacáp1IPM | B10: Boyacá | C10: p1 | D10: 2000-2005 | E10: IPM | F10: 0.5487033507
A11: Boyacáp2IPM | B11: Boyacá | C11: p2 | D11: 2010-2015 | E11: IPM | F11: 0.5505
A12: Caldasp1IPM | B12: Caldas | C12: p1 | D12: 2000-2005 | E12: IPM | F12: 0.4609905448
A13: Caldasp2IPM | B13: Caldas | C13: p2 | D13: 2010-2015 | E13: IPM | F13: 0.467
A14: Caquetáp1IPM | B14: Caquetá | C14: p1 | D14: 2000-2005 | E14: IPM | F14: 0.7083689016
A15: Caquetáp2IPM | B15: Caquetá | C15: p2 | D15: 2010-2015 | E15: IPM | F15: 0.7245
A16: Caucap1IPM | B16: Cauca | C16: p1 | D16: 2000-2005 | E16: IPM | F16: 0.7059229394
A17: Caucap2IPM | B17: Cauca | C17: p2 | D17: 2010-2015 | E17: IPM | F17: 0.7171
A18: Cesarp1IPM | B18: Cesar | C18: p1 | D18: 2000-2005 | E18: IPM | F18: 0.6671361545
A19: Cesarp2IPM | B19: Cesar | C19: p2 | D19: 2010-2015 | E19: IPM | F19: 0.6673
A20: Chocóp1IPM | B20: Chocó | C20: p1 | D20: 2000-2005 | E20: IPM | F20: 0.8579453654
A21: Chocóp2IPM | B21: Chocó | C21: p2 | D21: 2010-2015 | E21: IPM | F21: 0.8688
A22: Córdobap1IPM | B22: Córdoba | C22: p1 | D22: 2000-2005 | E22: IPM | F22: 0.7963706144
A23: Córdobap2IPM | B23: Córdoba | C23: p2 | D23: 2010-2015 | E23: IPM | F23: 0.7963706144
A24: Cundinamarcap1IPM | B24: Cundinamarca | C24: p1 | D24: 2000-2005 | E24: IPM | F24: 0.4138
A25: Cundinamarcap2IPM | B25: Cundinamarca | C25: p2 | D25: 2010-2015 | E25: IPM | F25: 0.4156
A26: Huilap1IPM | B26: Huila | C26: p1 | D26: 2000-2005 | E26: IPM | F26: 0.580260625
A27: Huilap2IPM | B27: Huila | C27: p2 | D27: 2010-2015 | E27: IPM | F27: 0.581
A28: La Guajirap1IPM | B28: La Guajira | C28: p1 | D28: 2000-2005 | E28: IPM | F28: 0.7971868806
A29: La Guajirap2IPM | B29: La Guajira | C29: p2 | D29: 2010-2015 | E29: IPM | F29: 0.798
A30: Magdalenap1IPM | B30: Magdalena | C30: p1 | D30: 2000-2005 | E30: IPM | F30: 0.6967586859
A31: Magdalenap2IPM | B31: Magdalena | C31: p2 | D31: 2010-2015 | E31: IPM | F31: 0.6978
A32: Metap1IPM | B32: Meta | C32: p1 | D32: 2000-2005 | E32: IPM | F32: 0.5106249064
A33: Metap2IPM | B33: Meta | C33: p2 | D33: 2010-2015 | E33: IPM | F33: 0.54
A34: Nariñop1IPM | B34: Nariño | C34: p1 | D34: 2000-2005 | E34: IPM | F34: 0.686561426
A35: Nariñop2IPM | B35: Nariño | C35: p2 | D35: 2010-2015 | E35: IPM | F35: 0.6889
A36: Norte de Santanderp1IPM | B36: Norte de Santander | C36: p1 | D36: 2000-2005 | E36: IPM | F36: 0.5820484752
A37: Norte de Santanderp2IPM | B37: Norte de Santander | C37: p2 | D37: 2010-2015 | E37: IPM | F37: 0.5881
A38: Quindíop1IPM | B38: Quindío | C38: p1 | D38: 2000-2005 | E38: IPM | F38: 0.4160524594
A39: Quindíop2IPM | B39: Quindío | C39: p2 | D39: 2010-2015 | E39: IPM | F39: 0.4164
A40: Risaraldap1IPM | B40: Risaralda | C40: p1 | D40: 2000-2005 | E40: IPM | F40: 0.4119545108
A41: Risaraldap2IPM | B41: Risaralda | C41: p2 | D41: 2010-2015 | E41: IPM | F41: 0.4138
A42: Santanderp1IPM | B42: Santander | C42: p1 | D42: 2000-2005 | E42: IPM | F42: 0.4498734703
A43: Santanderp2IPM | B43: Santander | C43: p2 | D43: 2010-2015 | E43: IPM | F43: 0.4524
A44: Sucrep1IPM | B44: Sucre | C44: p1 | D44: 2000-2005 | E44: IPM | F44: 0.7310343816
A45: Sucrep2IPM | B45: Sucre | C45: p2 | D45: 2010-2015 | E45: IPM | F45: 0.7319
A46: Tolimap1IPM | B46: Tolima | C46: p1 | D46: 2000-2005 | E46: IPM | F46: 0.5458500038
A47: Tolimap2IPM | B47: Tolima | C47: p2 | D47: 2010-2015 | E47: IPM | F47: 0.5524
A48: Valle del Caucap1IPM | B48: Valle del Cauca | C48: p1 | D48: 2000-2005 | E48: IPM | F48: 0.387816428
A49: Valle del Caucap2IPM | B49: Valle del Cauca | C49: p2 | D49: 2010-2015 | E49: IPM | F49: 0.3882
A50: Araucap1IPM | B50: Arauca | C50: p1 | D50: 2000-2005 | E50: IPM | F50: 0.5915267883
A51: Araucap2IPM | B51: Arauca | C51: p2 | D51: 2010-2015 | E51: IPM | F51: 0.6138
A52: Casanarep1IPM | B52: Casanare | C52: p1 | D52: 2000-2005 | E52: IPM | F52: 0.5674345326
A53: Casanarep2IPM | B53: Casanare | C53: p2 | D53: 2010-2015 | E53: IPM | F53: 0.5696
A54: Putumayop1IPM | B54: Putumayo | C54: p1 | D54: 2000-2005 | E54: IPM | F54: 0.7633808991
A55: Putumayop2IPM | B55: Putumayo | C55: p2 | D55: 2010-2015 | E55: IPM | F55: 0.7861
A56: San Andrés y Providenciap1IPM | B56: San Andrés y Providencia | C56: p1 | D56: 2000-2005 | E56: IPM | F56: 0.3754297326
A57: San Andrés y Providenciap2IPM | B57: San Andrés y Providencia | C57: p2 | D57: 2010-2015 | E57: IPM | F57: 0.3754297326
A58: Amazonasp1IPM | B58: Amazonas | C58: p1 | D58: 2000-2005 | E58: IPM | F58: 0.7381939907
A59: Amazonasp2IPM | B59: Amazonas | C59: p2 | D59: 2010-2015 | E59: IPM | F59: 0.7632
A60: Guainíap1IPM | B60: Guainía | C60: p1 | D60: 2000-2005 | E60: IPM | F60: 0.7883375025
A61: Guainíap2IPM | B61: Guainía | C61: p2 | D61: 2010-2015 | E61: IPM | F61: 0.8325
A62: Guaviarep1IPM | B62: Guaviare | C62: p1 | D62: 2000-2005 | E62: IPM | F62: 0.749503509
A63: Guaviarep2IPM | B63: Guaviare | C63: p2 | D63: 2010-2015 | E63: IPM | F63: 0.7847
A64: Vaupésp1IPM | B64: Vaupés | C64: p1 | D64: 2000-2005 | E64: IPM | F64: 0.7783246596
A65: Vaupésp2IPM | B65: Vaupés | C65: p2 | D65: 2010-2015 | E65: IPM | F65: 0.786
A66: Vichadap1IPM | B66: Vichada | C66: p1 | D66: 2000-2005 | E66: IPM | F66: 0.8425755645
A67: =CONCATENATE(B67,C67,E67) -> Vichadap2IPM | B67: Vichada | C67: p2 | D67: 2010-2015 | E67: IPM | F67: 0.8523
A68: Antioquiap1IDH | B68: Antioquia | C68: p1 | D68: 2000-2005 | E68: IDH | F68: 0.807
A69: Antioquiap2IDH | B69: Antioquia | C69: p2 | D69: 2010-2015 | E69: IDH | F69: 0.849
A70: Atlánticop1IDH | B70: Atlántico | C70: p1 | D70: 2000-2005 | E70: IDH | F70: 0.801
A71: Atlánticop2IDH | B71: Atlántico | C71: p2 | D71: 2010-2015 | E71: IDH | F71: 0.835
A72: Bogotáp1IDH | B72: Bogotá | C72: p1 | D72: 2000-2005 | E72: IDH | F72: 0.87
A73: Bogotáp2IDH | B73: Bogotá | C73: p2 | D73: 2010-2015 | E73: IDH | F73: 0.835
A74: Bolívarp1IDH | B74: Bolívar | C74: p1 | D74: 2000-2005 | E74: IDH | F74: 0.787
A75: Bolívarp2IDH | B75: Bolívar | C75: p2 | D75: 2010-2015 | E75: IDH | F75: 0.823
A76: Boyacáp1IDH | B76: Boyacá | C76: p1 | D76: 2000-2005 | E76: IDH | F76: 0.798
A77: Boyacáp2IDH | B77: Boyacá | C77: p2 | D77: 2010-2015 | E77: IDH | F77: 0.842
A78: Caldasp1IDH | B78: Caldas | C78: p1 | D78: 2000-2005 | E78: IDH | F78: 0.789
A79: Caldasp2IDH | B79: Caldas | C79: p2 | D79: 2010-2015 | E79: IDH | F79: 0.828
A80: Caquetáp1IDH | B80: Caquetá | C80: p1 | D80: 2000-2005 | E80: IDH | F80: 0.723
A81: Caquetáp2IDH | B81: Caquetá | C81: p2 | D81: 2010-2015 | E81: IDH | F81: 0.752
A82: Caucap1IDH | B82: Cauca | C82: p1 | D82: 2000-2005 | E82: IDH | F82: 0.742
A83: Caucap2IDH | B83: Cauca | C83: p2 | D83: 2010-2015 | E83: IDH | F83: 0.782
A84: Cesarp1IDH | B84: Cesar | C84: p1 | D84: 2000-2005 | E84: IDH | F84: 0.77
A85: Cesarp2IDH | B85: Cesar | C85: p2 | D85: 2010-2015 | E85: IDH | F85: 0.81
A86: Chocóp1IDH | B86: Chocó | C86: p1 | D86: 2000-2005 | E86: IDH | F86: 0.687
A87: Chocóp2IDH | B87: Chocó | C87: p2 | D87: 2010-2015 | E87: IDH | F87: 0.731
A88: Córdobap1IDH | B88: Córdoba | C88: p1 | D88: 2000-2005 | E88: IDH | F88: 0.751
A89: Córdobap2IDH | B89: Córdoba | C89: p2 | D89: 2010-2015 | E89: IDH | F89: 0.798
A90: Cundinamarcap1IDH | B90: Cundinamarca | C90: p1 | D90: 2000-2005 | E90: IDH | F90: 0.803
A91: Cundinamarcap2IDH | B91: Cundinamarca | C91: p2 | D91: 2010-2015 | E91: IDH | F91: 0.837
A92: Huilap1IDH | B92: Huila | C92: p1 | D92: 2000-2005 | E92: IDH | F92: 0.774
A93: Huilap2IDH | B93: Huila | C93: p2 | D93: 2010-2015 | E93: IDH | F93: 0.807
A94: La Guajirap1IDH | B94: La Guajira | C94: p1 | D94: 2000-2005 | E94: IDH | F94: 0.705
A95: La Guajirap2IDH | B95: La Guajira | C95: p2 | D95: 2010-2015 | E95: IDH | F95: 0.691
A96: Magdalenap1IDH | B96: Magdalena | C96: p1 | D96: 2000-2005 | E96: IDH | F96: 0.744
A97: Magdalenap2IDH | B97: Magdalena | C97: p2 | D97: 2010-2015 | E97: IDH | F97: 0.785
A98: Metap1IDH | B98: Meta | C98: p1 | D98: 2000-2005 | E98: IDH | F98: 0.785
A99: Metap2IDH | B99: Meta | C99: p2 | D99: 2010-2015 | E99: IDH | F99: 0.822
A100: Nariñop1IDH | B100: Nariño | C100: p1 | D100: 2000-2005 | E100: IDH | F100: 0.742
A101: Nariñop2IDH | B101: Nariño | C101: p2 | D101: 2010-2015 | E101: IDH | F101: 0.773
A102: Norte de Santanderp1IDH | B102: Norte de Santander | C102: p1 | D102: 2000-2005 | E102: IDH | F102: 0.748
A103: Norte de Santanderp2IDH | B103: Norte de Santander | C103: p2 | D103: 2010-2015 | E103: IDH | F103: 0.796
A104: Quindíop1IDH | B104: Quindío | C104: p1 | D104: 2000-2005 | E104: IDH | F104: 0.78
A105: Quindíop2IDH | B105: Quindío | C105: p2 | D105: 2010-2015 | E105: IDH | F105: 0.832
A106: Risaraldap1IDH | B106: Risaralda | C106: p1 | D106: 2000-2005 | E106: IDH | F106: 0.788
A107: Risaraldap2IDH | B107: Risaralda | C107: p2 | D107: 2010-2015 | E107: IDH | F107: 0.839
A108: Santanderp1IDH | B108: Santander | C108: p1 | D108: 2000-2005 | E108: IDH | F108: 0.827
A109: Santanderp2IDH | B109: Santander | C109: p2 | D109: 2010-2015 | E109: IDH | F109: 0.879
A110: Sucrep1IDH | B110: Sucre | C110: p1 | D110: 2000-2005 | E110: IDH | F110: 0.739
A111: Sucrep2IDH | B111: Sucre | C111: p2 | D111: 2010-2015 | E111: IDH | F111: 0.775
A112: Tolimap1IDH | B112: Tolima | C112: p1 | D112: 2000-2005 | E112: IDH | F112: 0.764
A113: Tolimap2IDH | B113: Tolima | C113: p2 | D113: 2010-2015 | E113: IDH | F113: 0.804
A114: Valle del Caucap1IDH | B114: Valle del Cauca | C114: p1 | D114: 2000-2005 | E114: IDH | F114: 0.819
A115: Valle del Caucap2IDH | B115: Valle del Cauca | C115: p2 | D115: 2010-2015 | E115: IDH | F115: 0.861
A116: Araucap1IDH | B116: Arauca | C116: p1 | D116: 2000-2005 | E116: IDH | F116: 0.796
A117: Araucap2IDH | B117: Arauca | C117: p2 | D117: 2010-2015 | E117: IDH | F117: 0.804
A118: Casanarep1IDH | B118: Casanare | C118: p1 | D118: 2000-2005 | E118: IDH | F118: 0.859
A119: Casanarep2IDH | B119: Casanare | C119: p2 | D119: 2010-2015 | E119: IDH | F119: 0.867
A120: Putumayop1IDH | B120: Putumayo | C120: p1 | D120: 2000-2005 | E120: IDH | F120: 0.727
A121: Putumayop2IDH | B121: Putumayo | C121: p2 | D121: 2010-2015 | E121: IDH | F121: 0.759
A122: San Andrés y Providenciap1IDH | B122: San Andrés y Providencia | C122: p1 | D122: 2000-2005 | E122: IDH | F122: 0.832
A123: San Andrés y Providenciap2IDH | B123: San Andrés y Providencia | C123: p2 | D123: 2010-2015 | E123: IDH | F123: 0.834
A124: Amazonasp1IDH | B124: Amazonas | C124: p1 | D124: 2000-2005 | E124: IDH | F124: 0.73
A125: Amazonasp2IDH | B125: Amazonas | C125: p2 | D125: 2010-2015 | E125: IDH | F125: 0.768
A126: Guainíap1IDH | B126: Guainía | C126: p1 | D126: 2000-2005 | E126: IDH
A127: Guainíap2IDH | B127: Guainía | C127: p2 | D127: 2010-2015 | E127: IDH
A128: Guaviarep1IDH | B128: Guaviare | C128: p1 | D128: 2000-2005 | E128: IDH
A129: Guaviarep2IDH | B129: Guaviare | C129: p2 | D129: 2010-2015 | E129: IDH
A130: Vaupésp1IDH | B130: Vaupés | C130: p1 | D130: 2000-2005 | E130: IDH
A131: =CONCATENATE(B131,C131,E131) -> Vaupésp2IDH | B131: Vaupés | C131: p2 | D131: 2010-2015 | E131: IDH
A132: Vichadap1IDH | B132: Vichada | C132: p1 | D132: 2000-2005 | E132: IDH
A133: Vichadap2IDH | B133: Vichada | C133: p2 | D133: 2010-2015 | E133: IDH
A134: Amazonasp1PIB | B134: Amazonas | C134: p1 | D134: 2000-2005 | E134: PIB | F134: 231.8333333
A135: Amazonasp2PIB | B135: Amazonas | C135: p2 | D135: 2010-2015 | E135: PIB | F135: 326.5
A136: Antioquiap1PIB | B136: Antioquia | C136: p1 | D136: 2000-2005 | E136: PIB | F136: 41657.33333
A137: Antioquiap2PIB | B137: Antioquia | C137: p2 | D137: 2010-2015 | E137: PIB | F137: 65591
A138: Araucap1PIB | B138: Arauca | C138: p1 | D138: 2000-2005 | E138: PIB | F138: 3005.333333
A139: Araucap2PIB | B139: Arauca | C139: p2 | D139: 2010-2015 | E139: PIB | F139: 3147
A140: Atlánticop1PIB | B140: Atlántico | C140: p1 | D140: 2000-2005 | E140: PIB | F140: 12464.16667
A141: Atlánticop2PIB | B141: Atlántico | C141: p2 | D141: 2010-2015 | E141: PIB | F141: 19295.16667
A142: Bogotáp1PIB | B142: Bogotá | C142: p1 | D142: 2000-2005 | E142: PIB | F142: 80237.83333
A143: Bogotáp2PIB | B143: Bogotá | C143: p2 | D143: 2010-2015 | E143: PIB | F143: 125643
A144: Bolívarp1PIB | B144: Bolívar | C144: p1 | D144: 2000-2005 | E144: PIB | F144: 11807.66667
A145: Bolívarp2PIB | B145: Bolívar | C145: p2 | D145: 2010-2015 | E145: PIB | F145: 18524.83333
A146: Boyacáp1PIB | B146: Boyacá | C146: p1 | D146: 2000-2005 | E146: PIB | F146: 8249.833333
A147: Boyacáp2PIB | B147: Boyacá | C147: p2 | D147: 2010-2015 | E147: PIB | F147: 13203.16667
A148: Caldasp1PIB | B148: Caldas | C148: p1 | D148: 2000-2005 | E148: PIB | F148: 5405.166667
A149: Caldasp2PIB | B149: Caldas | C149: p2 | D149: 2010-2015 | E149: PIB | F149: 7139.5
A150: Caquetáp1PIB | B150: Caquetá | C150: p1 | D150: 2000-2005 | E150: PIB | F150: 1433.5
A151: Caquetáp2PIB | B151: Caquetá | C151: p2 | D151: 2010-2015 | E151: PIB | F151: 2136.666667
A152: Casanarep1PIB | B152: Casanare | C152: p1 | D152: 2000-2005 | E152: PIB | F152: 8879
A153: Casanarep2PIB | B153: Casanare | C153: p2 | D153: 2010-2015 | E153: PIB | F153: 8208.666667
A154: Caucap1PIB | B154: Cauca | C154: p1 | D154: 2000-2005 | E154: PIB | F154: 4352.166667
A155: Caucap2PIB | B155: Cauca | C155: p2 | D155: 2010-2015 | E155: PIB | F155: 7476.5
A156: Cesarp1PIB | B156: Cesar | C156: p1 | D156: 2000-2005 | E156: PIB | F156: 5192.833333
A157: Cesarp2PIB | B157: Cesar | C157: p2 | D157: 2010-2015 | E157: PIB | F157: 9299.166667
A158: Chocóp1PIB | B158: Chocó | C158: p1 | D158: 2000-2005 | E158: PIB | F158: 1084.166667
A159: Chocóp2PIB | B159: Chocó | C159: p2 | D159: 2010-2015 | E159: PIB | F159: 1884.5
A160: Córdobap1PIB | B160: Córdoba | C160: p1 | D160: 2000-2005 | E160: PIB | F160: 6297.666667
A161: Córdobap2PIB | B161: Córdoba | C161: p2 | D161: 2010-2015 | E161: PIB | F161: 8567.5
A162: Cundinamarcap1PIB | B162: Cundinamarca | C162: p1 | D162: 2000-2005 | E162: PIB | F162: 15998.66667
A163: Cundinamarcap2PIB | B163: Cundinamarca | C163: p2 | D163: 2010-2015 | E163: PIB | F163: 25684.5
A164: Guainíap1PIB | B164: Guainía | C164: p1 | D164: 2000-2005 | E164: PIB | F164: 105.6666667
A165: Guainíap2PIB | B165: Guainía | C165: p2 | D165: 2010-2015 | E165: PIB | F165: 150
A166: Guaviarep1PIB | B166: Guaviare | C166: p1 | D166: 2000-2005 | E166: PIB | F166: 314
A167: Guaviarep2PIB | B167: Guaviare | C167: p2 | D167: 2010-2015 | E167: PIB | F167: 363.6666667
A168: Huilap1PIB | B168: Huila | C168: p1 | D168: 2000-2005 | E168: PIB | F168: 5937.333333
A169: Huilap2PIB | B169: Huila | C169: p2 | D169: 2010-2015 | E169: PIB | F169: 8176.166667
A170: La Guajirap1PIB | B170: La Guajira | C170: p1 | D170: 2000-2005 | E170: PIB | F170: 3492.5
A171: La Guajirap2PIB | B171: La Guajira | C171: p2 | D171: 2010-2015 | E171: PIB | F171: 5415.166667
A172: Magdalenap1PIB | B172: Magdalena | C172: p1 | D172: 2000-2005 | E172: PIB | F172: 4077.166667
A173: Magdalenap2PIB | B173: Magdalena | C173: p2 | D173: 2010-2015 | E173: PIB | F173: 6318.666667
A174: Metap1PIB | B174: Meta | C174: p1 | D174: 2000-2005 | E174: PIB | F174: 6387.333333
A175: Metap2PIB | B175: Meta | C175: p2 | D175: 2010-2015 | E175: PIB | F175: 20922.66667
A176: Nariñop1PIB | B176: Nariño | C176: p1 | D176: 2000-2005 | E176: PIB | F176: 4710.166667
A177: Nariñop2PIB | B177: Nariño | C177: p2 | D177: 2010-2015 | E177: PIB | F177: 7221.166667
A178: Norte de Santanderp1PIB | B178: Norte de Santander | C178: p1 | D178: 2000-2005 | E178: PIB | F178: 5259
A179: Norte de Santanderp2PIB | B179: Norte de Santander | C179: p2 | D179: 2010-2015 | E179: PIB | F179: 7821.5
A180: Putumayop1PIB | B180: Putumayo | C180: p1 | D180: 2000-2005 | E180: PIB | F180: 1018.333333
A181: Putumayop2PIB | B181: Putumayo | C181: p2 | D181: 2010-2015 | E181: PIB | F181: 2236
A182: Quindíop1PIB | B182: Quindío | C182: p1 | D182: 2000-2005 | E182: PIB | F182: 2763.333333
A183: Quindíop2PIB | B183: Quindío | C183: p2 | D183: 2010-2015 | E183: PIB | F183: 3607.666667
A184: Risaraldap1PIB | B184: Risaralda | C184: p1 | D184: 2000-2005 | E184: PIB | F184: 4846.5
A185: Risaraldap2PIB | B185: Risaralda | C185: p2 | D185: 2010-2015 | E185: PIB | F185: 7033.333333
A186: San Andrés y Providenciap1PIB | B186: San Andrés y Providencia | C186: p1 | D186: 2000-2005 | E186: PIB | F186: 480.1666667
A187: San Andrés y Providenciap2PIB | B187: San Andrés y Providencia | C187: p2 | D187: 2010-2015 | E187: PIB | F187: 703.6666667
A188: Santanderp1PIB | B188: Santander | C188: p1 | D188: 2000-2005 | E188: PIB | F188: 20125.5
A189: Santanderp2PIB | B189: Santander | C189: p2 | D189: 2010-2015 | E189: PIB | F189: 32817.83333
A190: Sucrep1PIB | B190: Sucre | C190: p1 | D190: 2000-2005 | E190: PIB | F190: 2356.333333
A191: Sucrep2PIB | B191: Sucre | C191: p2 | D191: 2010-2015 | E191: PIB | F191: 3807
A192: Tolimap1PIB | B192: Tolima | C192: p1 | D192: 2000-2005 | E192: PIB | F192: 7267.333333
A193: Tolimap2PIB | B193: Tolima | C193: p2 | D193: 2010-2015 | E193: PIB | F193: 10123
A194: Valle del Caucap1PIB | B194: Valle del Cauca | C194: p1 | D194: 2000-2005 | E194: PIB | F194: 32128.5
A195: =CONCATENATE(B195,C195,E195) -> Valle del Caucap2PIB | B195: Valle del Cauca | C195: p2 | D195: 2010-2015 | E195: PIB | F195: 47549.16667
A196: Vaupésp1PIB | B196: Vaupés | C196: p1 | D196: 2000-2005 | E196: PIB | F196: 100
A197: Vaupésp2PIB | B197: Vaupés | C197: p2 | D197: 2010-2015 | E197: PIB | F197: 135.5
A198: Vichadap1PIB | B198: Vichada | C198: p1 | D198: 2000-2005 | E198: PIB | F198: 203.6666667
A199: Vichadap2PIB | B199: Vichada | C199: p2 | D199: 2010-2015 | E199: PIB | F199: 269.6666667
A200: Antioquiap1PIBpc | B200: Antioquia | C200: p1 | D200: 2000-2005 | E200: PIBpc | F200: 1265403.833
... 329 more rows

Sheet salud
A1: D&P&I | B1: depto | C1: indicador | D1: per | E1: periodo | F1: casos | G1: denominador | H1: expansor
A2: =CONCATENATE(B2,D2,C2) -> Amazonasp1Mortalidad Materna | B2: Amazonas | C2: Mortalidad Materna | D2: p1 | E2: 2000-2005 | F2: 12 | G2: 8100 | H2: 100000
A3: =CONCATENATE(B3,D3,C3) -> Amazonasp2Mortalidad Materna | B3: Amazonas | C3: Mortalidad Materna | D3: p2 | E3: 2010-2015 | F3: 7 | G3: 8618 | H3: 100000
A4: Antioquiap1Mortalidad Materna | B4: Antioquia | C4: Mortalidad Materna | D4: p1 | E4: 2000-2005 | F4: 373 | G4: 579644 | H4: 100000
A5: Antioquiap2Mortalidad Materna | B5: Antioquia | C5: Mortalidad Materna | D5: p2 | E5: 2010-2015 | F5: 211 | G5: 458869 | H5: 100000
A6: Araucap1Mortalidad Materna | B6: Arauca | C6: Mortalidad Materna | D6: p1 | E6: 2000-2005 | F6: 30 | G6: 31182 | H6: 100000
A7: Araucap2Mortalidad Materna | B7: Arauca | C7: Mortalidad Materna | D7: p2 | E7: 2010-2015 | F7: 14 | G7: 25633 | H7: 100000
A8: Atlánticop1Mortalidad Materna | B8: Atlántico | C8: Mortalidad Materna | D8: p1 | E8: 2000-2005 | F8: 189 | G8: 247615 | H8: 100000
A9: Atlánticop2Mortalidad Materna | B9: Atlántico | C9: Mortalidad Materna | D9: p2 | E9: 2010-2015 | F9: 139 | G9: 230819 | H9: 100000
A10: Bogotáp1Mortalidad Materna | B10: Bogotá | C10: Mortalidad Materna | D10: p1 | E10: 2000-2005 | F10: 483 | G10: 697517 | H10: 100000
A11: Bogotáp2Mortalidad Materna | B11: Bogotá | C11: Mortalidad Materna | D11: p2 | E11: 2010-2015 | F11: 227 | G11: 633311 | H11: 100000
A12: Bolívarp1Mortalidad Materna | B12: Bolívar | C12: Mortalidad Materna | D12: p1 | E12: 2000-2005 | F12: 158 | G12: 185444 | H12: 100000
A13: Bolívarp2Mortalidad Materna | B13: Bolívar | C13: Mortalidad Materna | D13: p2 | E13: 2010-2015 | F13: 122 | G13: 210859 | H13: 100000
A14: Boyacáp1Mortalidad Materna | B14: Boyacá | C14: Mortalidad Materna | D14: p1 | E14: 2000-2005 | F14: 114 | G14: 129450 | H14: 100000
A15: Boyacáp2Mortalidad Materna | B15: Boyacá | C15: Mortalidad Materna | D15: p2 | E15: 2010-2015 | F15: 51 | G15: 99677 | H15: 100000
A16: Caldasp1Mortalidad Materna | B16: Caldas | C16: Mortalidad Materna | D16: p1 | E16: 2000-2005 | F16: 80 | G16: 91186 | H16: 100000
A17: Caldasp2Mortalidad Materna | B17: Caldas | C17: Mortalidad Materna | D17: p2 | E17: 2010-2015 | F17: 33 | G17: 62084 | H17: 100000
A18: Caquetáp1Mortalidad Materna | B18: Caquetá | C18: Mortalidad Materna | D18: p1 | E18: 2000-2005 | F18: 73 | G18: 41197 | H18: 100000
A19: Caquetáp2Mortalidad Materna | B19: Caquetá | C19: Mortalidad Materna | D19: p2 | E19: 2010-2015 | F19: 53 | G19: 45108 | H19: 100000
A20: Casanarep1Mortalidad Materna | B20: Casanare | C20: Mortalidad Materna | D20: p1 | E20: 2000-2005 | F20: 16 | G20: 34515 | H20: 100000
A21: Casanarep2Mortalidad Materna | B21: Casanare | C21: Mortalidad Materna | D21: p2 | E21: 2010-2015 | F21: 19 | G21: 41269 | H21: 100000
A22: Caucap1Mortalidad Materna | B22: Cauca | C22: Mortalidad Materna | D22: p1 | E22: 2000-2005 | F22: 162 | G22: 107200 | H22: 100000
A23: Caucap2Mortalidad Materna | B23: Cauca | C23: Mortalidad Materna | D23: p2 | E23: 2010-2015 | F23: 113 | G23: 106211 | H23: 100000
A24: Cesarp1Mortalidad Materna | B24: Cesar | C24: Mortalidad Materna | D24: p1 | E24: 2000-2005 | F24: 89 | G24: 115867 | H24: 100000
A25: Cesarp2Mortalidad Materna | B25: Cesar | C25: Mortalidad Materna | D25: p2 | E25: 2010-2015 | F25: 102 | G25: 123632 | H25: 100000
A26: Chocóp1Mortalidad Materna | B26: Chocó | C26: Mortalidad Materna | D26: p1 | E26: 2000-2005 | F26: 95 | G26: 28046 | H26: 100000
A27: Chocóp2Mortalidad Materna | B27: Chocó | C27: Mortalidad Materna | D27: p2 | E27: 2010-2015 | F27: 78 | G27: 38543 | H27: 100000
A28: Córdobap1Mortalidad Materna | B28: Córdoba | C28: Mortalidad Materna | D28: p1 | E28: 2000-2005 | F28: 146 | G28: 146885 | H28: 100000
A29: Córdobap2Mortalidad Materna | B29: Córdoba | C29: Mortalidad Materna | D29: p2 | E29: 2010-2015 | F29: 161 | G29: 159118 | H29: 100000
A30: Cundinamarcap1Mortalidad Materna | B30: Cundinamarca | C30: Mortalidad Materna | D30: p1 | E30: 2000-2005 | F30: 167 | G30: 213177 | H30: 100000
A31: Cundinamarcap2Mortalidad Materna | B31: Cundinamarca | C31: Mortalidad Materna | D31: p2 | E31: 2010-2015 | F31: 103 | G31: 207543 | H31: 100000
A32: Guainíap1Mortalidad Materna | B32: Guainía | C32: Mortalidad Materna | D32: p1 | E32: 2000-2005 | F32: 8 | G32: 3252 | H32: 100000
A33: Guainíap2Mortalidad Materna | B33: Guainía | C33: Mortalidad Materna | D33: p2 | E33: 2010-2015 | F33: 6 | G33: 3520 | H33: 100000
A34: Guaviarep1Mortalidad Materna | B34: Guaviare | C34: Mortalidad Materna | D34: p1 | E34: 2000-2005 | F34: 22 | G34: 9674 | H34: 100000
A35: Guaviarep2Mortalidad Materna | B35: Guaviare | C35: Mortalidad Materna | D35: p2 | E35: 2010-2015 | F35: 7 | G35: 7240 | H35: 100000
A36: Huilap1Mortalidad Materna | B36: Huila | C36: Mortalidad Materna | D36: p1 | E36: 2000-2005 | F36: 93 | G36: 129970 | H36: 100000
A37: Huilap2Mortalidad Materna | B37: Huila | C37: Mortalidad Materna | D37: p2 | E37: 2010-2015 | F37: 42 | G37: 120104 | H37: 100000
A38: La Guajirap1Mortalidad Materna | B38: La Guajira | C38: Mortalidad Materna | D38: p1 | E38: 2000-2005 | F38: 73 | G38: 62074 | H38: 100000
A39: La Guajirap2Mortalidad Materna | B39: La Guajira | C39: Mortalidad Materna | D39: p2 | E39: 2010-2015 | F39: 136 | G39: 81311 | H39: 100000
A40: Magdalenap1Mortalidad Materna | B40: Magdalena | C40: Mortalidad Materna | D40: p1 | E40: 2000-2005 | F40: 134 | G40: 117816 | H40: 100000
A41: Magdalenap2Mortalidad Materna | B41: Magdalena | C41: Mortalidad Materna | D41: p2 | E41: 2010-2015 | F41: 113 | G41: 135486 | H41: 100000
A42: Metap1Mortalidad Materna | B42: Meta | C42: Mortalidad Materna | D42: p1 | E42: 2000-2005 | F42: 89 | G42: 90908 | H42: 100000
A43: Metap2Mortalidad Materna | B43: Meta | C43: Mortalidad Materna | D43: p2 | E43: 2010-2015 | F43: 45 | G43: 92887 | H43: 100000
A44: Nariñop1Mortalidad Materna | B44: Nariño | C44: Mortalidad Materna | D44: p1 | E44: 2000-2005 | F44: 170 | G44: 129536 | H44: 100000
A45: Nariñop2Mortalidad Materna | B45: Nariño | C45: Mortalidad Materna | D45: p2 | E45: 2010-2015 | F45: 86 | G45: 108734 | H45: 100000
A46: Norte de Santanderp1Mortalidad Materna | B46: Norte de Santander | C46: Mortalidad Materna | D46: p1 | E46: 2000-2005 | F46: 94 | G46: 133690 | H46: 100000
A47: Norte de Santanderp2Mortalidad Materna | B47: Norte de Santander | C47: Mortalidad Materna | D47: p2 | E47: 2010-2015 | F47: 74 | G47: 123434 | H47: 100000
A48: Putumayop1Mortalidad Materna | B48: Putumayo | C48: Mortalidad Materna | D48: p1 | E48: 2000-2005 | F48: 38 | G48: 29600 | H48: 100000
A49: Putumayop2Mortalidad Materna | B49: Putumayo | C49: Mortalidad Materna | D49: p2 | E49: 2010-2015 | F49: 36 | G49: 25939 | H49: 100000
A50: Quindíop1Mortalidad Materna | B50: Quindío | C50: Mortalidad Materna | D50: p1 | E50: 2000-2005 | F50: 32 | G50: 51833 | H50: 100000
A51: Quindíop2Mortalidad Materna | B51: Quindío | C51: Mortalidad Materna | D51: p2 | E51: 2010-2015 | F51: 15 | G51: 35934 | H51: 100000
A52: Risaraldap1Mortalidad Materna | B52: Risaralda | C52: Mortalidad Materna | D52: p1 | E52: 2000-2005 | F52: 50 | G52: 85948 | H52: 100000
A53: Risaraldap2Mortalidad Materna | B53: Risaralda | C53: Mortalidad Materna | D53: p2 | E53: 2010-2015 | F53: 33 | G53: 69087 | H53: 100000
A54: San Andrés y Providenciap1Mortalidad Materna | B54: San Andrés y Providencia | C54: Mortalidad Materna | D54: p1 | E54: 2000-2005 | F54: 6 | G54: 5928 | H54: 100000
A55: San Andrés y Providenciap2Mortalidad Materna | B55: San Andrés y Providencia | C55: Mortalidad Materna | D55: p2 | E55: 2010-2015 | F55: 2 | G55: 5095 | H55: 100000
A56: Santanderp1Mortalidad Materna | B56: Santander | C56: Mortalidad Materna | D56: p1 | E56: 2000-2005 | F56: 114 | G56: 206050 | H56: 100000
A57: Santanderp2Mortalidad Materna | B57: Santander | C57: Mortalidad Materna | D57: p2 | E57: 2010-2015 | F57: 72 | G57: 184251 | H57: 100000
A58: Sucrep1Mortalidad Materna | B58: Sucre | C58: Mortalidad Materna | D58: p1 | E58: 2000-2005 | F58: 57 | G58: 83314 | H58: 100000
A59: Sucrep2Mortalidad Materna | B59: Sucre | C59: Mortalidad Materna | D59: p2 | E59: 2010-2015 | F59: 62 | G59: 89804 | H59: 100000
A60: Tolimap1Mortalidad Materna | B60: Tolima | C60: Mortalidad Materna | D60: p1 | E60: 2000-2005 | F60: 127 | G60: 149057 | H60: 100000
A61: Tolimap2Mortalidad Materna | B61: Tolima | C61: Mortalidad Materna | D61: p2 | E61: 2010-2015 | F61: 66 | G61: 114132 | H61: 100000
A62: Valle del Caucap1Mortalidad Materna | B62: Valle del Cauca | C62: Mortalidad Materna | D62: p1 | E62: 2000-2005 | F62: 310 | G62: 371599 | H62: 100000
A63: Valle del Caucap2Mortalidad Materna | B63: Valle del Cauca | C63: Mortalidad Materna | D63: p2 | E63: 2010-2015 | F63: 184 | G63: 324298 | H63: 100000
A64: Vaupésp1Mortalidad Materna | B64: Vaupés | C64: Mortalidad Materna | D64: p1 | E64: 2000-2005 | F64: 4 | G64: 3372 | H64: 100000
A65: Vaupésp2Mortalidad Materna | B65: Vaupés | C65: Mortalidad Materna | D65: p2 | E65: 2010-2015 | F65: 6 | G65: 3633 | H65: 100000
A66: Vichadap1Mortalidad Materna | B66: Vichada | C66: Mortalidad Materna | D66: p1 | E66: 2000-2005 | F66: 14 | G66: 4964 | H66: 100000
A67: =CONCATENATE(B67,D67,C67) -> Vichadap2Mortalidad Materna | B67: Vichada | C67: Mortalidad Materna | D67: p2 | E67: 2010-2015 | F67: 22 | G67: 6064 | H67: 100000
A68: Colombiap1Mortalidad Materna | B68: Colombia | C68: Mortalidad Materna | D68: p1 | E68: 2000-2005 | F68: 3622 | G68: 4325610 | H68: 100000
A69: Colombiap2Mortalidad Materna | B69: Colombia | C69: Mortalidad Materna | D69: p2 | E69: 2010-2015 | F69: 2460 | G69: 3982247 | H69: 100000
A70: Antioquiap1Accidente de Transito Terrestre | B70: Antioquia | C70: Accidente de Transito Terrestre | D70: p1 | E70: 2000-2005 | F70: 462 | G70: 3905635 | H70: 100000 | I70: 12-17
A71: Atlánticop1Accidente de Transito Terrestre | B71: Atlántico | C71: Accidente de Transito Terrestre | D71: p1 | E71: 2000-2005 | F71: 68 | G71: 1545640 | H71: 100000 | I71: 12-17
A72: Bogotáp1Accidente de Transito Terrestre | B72: Bogotá | C72: Accidente de Transito Terrestre | D72: p1 | E72: 2000-2005 | F72: 246 | G72: 4434484 | H72: 100000 | I72: 12-17
A73: Bolívarp1Accidente de Transito Terrestre | B73: Bolívar | C73: Accidente de Transito Terrestre | D73: p1 | E73: 2000-2005 | F73: 53 | G73: 1396552 | H73: 100000 | I73: 12-17
A74: Boyacáp1Accidente de Transito Terrestre | B74: Boyacá | C74: Accidente de Transito Terrestre | D74: p1 | E74: 2000-2005 | F74: 91 | G74: 906934 | H74: 100000 | I74: 12-17
A75: Caldasp1Accidente de Transito Terrestre | B75: Caldas | C75: Accidente de Transito Terrestre | D75: p1 | E75: 2000-2005 | F75: 57 | G75: 715437 | H75: 100000 | I75: 12-17
A76: Caquetáp1Accidente de Transito Terrestre | B76: Caquetá | C76: Accidente de Transito Terrestre | D76: p1 | E76: 2000-2005 | F76: 16 | G76: 329406 | H76: 100000 | I76: 12-17
A77: Caucap1Accidente de Transito Terrestre | B77: Cauca | C77: Accidente de Transito Terrestre | D77: p1 | E77: 2000-2005 | F77: 72 | G77: 954018 | H77: 100000 | I77: 12-17
A78: Cesarp1Accidente de Transito Terrestre | B78: Cesar | C78: Accidente de Transito Terrestre | D78: p1 | E78: 2000-2005 | F78: 76 | G78: 713258 | H78: 100000 | I78: 12-17
A79: Córdobap1Accidente de Transito Terrestre | B79: Córdoba | C79: Accidente de Transito Terrestre | D79: p1 | E79: 2000-2005 | F79: 73 | G79: 1095334 | H79: 100000 | I79: 12-17
A80: Cundinamarcap1Accidente de Transito Terrestre | B80: Cundinamarca | C80: Accidente de Transito Terrestre | D80: p1 | E80: 2000-2005 | F80: 143 | G80: 1616620 | H80: 100000 | I80: 12-17
A81: Chocóp1Accidente de Transito Terrestre | B81: Chocó | C81: Accidente de Transito Terrestre | D81: p1 | E81: 2000-2005 | F81: 7 | G81: 417797 | H81: 100000 | I81: 12-17
A82: Huilap1Accidente de Transito Terrestre | B82: Huila | C82: Accidente de Transito Terrestre | D82: p1 | E82: 2000-2005 | F82: 70 | G82: 737430 | H82: 100000 | I82: 12-17
A83: La Guajirap1Accidente de Transito Terrestre | B83: La Guajira | C83: Accidente de Transito Terrestre | D83: p1 | E83: 2000-2005 | F83: 22 | G83: 484426 | H83: 100000 | I83: 12-17
A84: Magdalenap1Accidente de Transito Terrestre | B84: Magdalena | C84: Accidente de Transito Terrestre | D84: p1 | E84: 2000-2005 | F84: 62 | G84: 876476 | H84: 100000 | I84: 12-17
A85: Metap1Accidente de Transito Terrestre | B85: Meta | C85: Accidente de Transito Terrestre | D85: p1 | E85: 2000-2005 | F85: 71 | G85: 572385 | H85: 100000 | I85: 12-17
A86: Nariñop1Accidente de Transito Terrestre | B86: Nariño | C86: Accidente de Transito Terrestre | D86: p1 | E86: 2000-2005 | F86: 80 | G86: 1143116 | H86: 100000 | I86: 12-17
A87: Norte de Santanderp1Accidente de Transito Terrestre | B87: Norte de Santander | C87: Accidente de Transito Terrestre | D87: p1 | E87: 2000-2005 | F87: 80 | G87: 908338 | H87: 100000 | I87: 12-17
A88: Quindíop1Accidente de Transito Terrestre | B88: Quindío | C88: Accidente de Transito Terrestre | D88: p1 | E88: 2000-2005 | F88: 28 | G88: 354315 | H88: 100000 | I88: 12-17
A89: Risaraldap1Accidente de Transito Terrestre | B89: Risaralda | C89: Accidente de Transito Terrestre | D89: p1 | E89: 2000-2005 | F89: 62 | G89: 610262 | H89: 100000 | I89: 12-17
A90: Santanderp1Accidente de Transito Terrestre | B90: Santander | C90: Accidente de Transito Terrestre | D90: p1 | E90: 2000-2005 | F90: 142 | G90: 1418731 | H90: 100000 | I90: 12-17
A91: Sucrep1Accidente de Transito Terrestre | B91: Sucre | C91: Accidente de Transito Terrestre | D91: p1 | E91: 2000-2005 | F91: 28 | G91: 587661 | H91: 100000 | I91: 12-17
A92: Tolimap1Accidente de Transito Terrestre | B92: Tolima | C92: Accidente de Transito Terrestre | D92: p1 | E92: 2000-2005 | F92: 106 | G92: 979330 | H92: 100000 | I92: 12-17
A93: Valle Del Caucap1Accidente de Transito Terrestre | B93: Valle Del Cauca | C93: Accidente de Transito Terrestre | D93: p1 | E93: 2000-2005 | F93: 319 | G93: 2869203 | H93: 100000 | I93: 12-17
A94: Araucap1Accidente de Transito Terrestre | B94: Arauca | C94: Accidente de Transito Terrestre | D94: p1 | E94: 2000-2005 | F94: 23 | G94: 175113 | H94: 100000 | I94: 12-17
A95: Casanarep1Accidente de Transito Terrestre | B95: Casanare | C95: Accidente de Transito Terrestre | D95: p1 | E95: 2000-2005 | F95: 23 | G95: 221201 | H95: 100000 | I95: 12-17
A96: Putumayop1Accidente de Transito Terrestre | B96: Putumayo | C96: Accidente de Transito Terrestre | D96: p1 | E96: 2000-2005 | F96: 14 | G96: 246842 | H96: 100000 | I96: 12-17
A97: San Andrés y Providenciap1Accidente de Transito Terrestre | B97: San Andrés y Providencia | C97: Accidente de Transito Terrestre | D97: p1 | E97: 2000-2005 | F97: 7 | G97: 49095 | H97: 100000 | I97: 12-17
A98: Amazonasp1Accidente de Transito Terrestre | B98: Amazonas | C98: Accidente de Transito Terrestre | D98: p1 | E98: 2000-2005 | F98: 0 | G98: 59624 | H98: 100000 | I98: 12-17
A99: Guainíap1Accidente de Transito Terrestre | B99: Guainía | C99: Accidente de Transito Terrestre | D99: p1 | E99: 2000-2005 | F99: 0 | G99: 30204 | H99: 100000 | I99: 12-17
A100: Guaviarep1Accidente de Transito Terrestre | B100: Guaviare | C100: Accidente de Transito Terrestre | D100: p1 | E100: 2000-2005 | F100: 1 | G100: 77509 | H100: 100000 | I100: 12-17
A101: Vaupésp1Accidente de Transito Terrestre | B101: Vaupés | C101: Accidente de Transito Terrestre | D101: p1 | E101: 2000-2005 | F101: 0 | G101: 32049 | H101: 100000 | I101: 12-17
A102: Vichadap1Accidente de Transito Terrestre | B102: Vichada | C102: Accidente de Transito Terrestre | D102: p1 | E102: 2000-2005 | F102: 0 | G102: 46026 | H102: 100000 | I102: 12-17
A103: Antioquiap2Accidente de Transito Terrestre | B103: Antioquia | C103: Accidente de Transito Terrestre | D103: p2 | E103: 2010-2015 | F103: 354 | G103: 3961864 | H103: 100000 | I103: 12-17
A104: Atlánticop2Accidente de Transito Terrestre | B104: Atlántico | C104: Accidente de Transito Terrestre | D104: p2 | E104: 2010-2015 | F104: 52 | G104: 1563686 | H104: 100000 | I104: 12-17
A105: Bogotáp2Accidente de Transito Terrestre | B105: Bogotá | C105: Accidente de Transito Terrestre | D105: p2 | E105: 2010-2015 | F105: 127 | G105: 4574686 | H105: 100000 | I105: 12-17
A106: Bolívarp2Accidente de Transito Terrestre | B106: Bolívar | C106: Accidente de Transito Terrestre | D106: p2 | E106: 2010-2015 | F106: 37 | G106: 1482993 | H106: 100000 | I106: 12-17
A107: Boyacáp2Accidente de Transito Terrestre | B107: Boyacá | C107: Accidente de Transito Terrestre | D107: p2 | E107: 2010-2015 | F107: 50 | G107: 884002 | H107: 100000 | I107: 12-17
A108: Caldasp2Accidente de Transito Terrestre | B108: Caldas | C108: Accidente de Transito Terrestre | D108: p2 | E108: 2010-2015 | F108: 48 | G108: 602555 | H108: 100000 | I108: 12-17
A109: Caquetáp2Accidente de Transito Terrestre | B109: Caquetá | C109: Accidente de Transito Terrestre | D109: p2 | E109: 2010-2015 | F109: 23 | G109: 361182 | H109: 100000 | I109: 12-17
A110: Caucap2Accidente de Transito Terrestre | B110: Cauca | C110: Accidente de Transito Terrestre | D110: p2 | E110: 2010-2015 | F110: 68 | G110: 993740 | H110: 100000 | I110: 12-17
A111: Cesarp2Accidente de Transito Terrestre | B111: Cesar | C111: Accidente de Transito Terrestre | D111: p2 | E111: 2010-2015 | F111: 89 | G111: 776906 | H111: 100000 | I111: 12-17
A112: Córdobap2Accidente de Transito Terrestre | B112: Córdoba | C112: Accidente de Transito Terrestre | D112: p2 | E112: 2010-2015 | F112: 60 | G112: 1205931 | H112: 100000 | I112: 12-17
A113: Cundinamarcap2Accidente de Transito Terrestre | B113: Cundinamarca | C113: Accidente de Transito Terrestre | D113: p2 | E113: 2010-2015 | F113: 95 | G113: 1735448 | H113: 100000 | I113: 12-17
A114: Chocóp2Accidente de Transito Terrestre | B114: Chocó | C114: Accidente de Transito Terrestre | D114: p2 | E114: 2010-2015 | F114: 7 | G114: 415042 | H114: 100000 | I114: 12-17
A115: Huilap2Accidente de Transito Terrestre | B115: Huila | C115: Accidente de Transito Terrestre | D115: p2 | E115: 2010-2015 | F115: 93 | G115: 828153 | H115: 100000 | I115: 12-17
A116: La Guajirap2Accidente de Transito Terrestre | B116: La Guajira | C116: Accidente de Transito Terrestre | D116: p2 | E116: 2010-2015 | F116: 46 | G116: 657093 | H116: 100000 | I116: 12-17
A117: Magdalenap2Accidente de Transito Terrestre | B117: Magdalena | C117: Accidente de Transito Terrestre | D117: p2 | E117: 2010-2015 | F117: 64 | G117: 963897 | H117: 100000 | I117: 12-17
A118: Metap2Accidente de Transito Terrestre | B118: Meta | C118: Accidente de Transito Terrestre | D118: p2 | E118: 2010-2015 | F118: 72 | G118: 627203 | H118: 100000 | I118: 12-17
A119: Nariñop2Accidente de Transito Terrestre | B119: Nariño | C119: Accidente de Transito Terrestre | D119: p2 | E119: 2010-2015 | F119: 96 | G119: 1194976 | H119: 100000 | I119: 12-17
A120: Norte de Santanderp2Accidente de Transito Terrestre | B120: Norte de Santander | C120: Accidente de Transito Terrestre | D120: p2 | E120: 2010-2015 | F120: 82 | G120: 978597 | H120: 100000 | I120: 12-17
A121: Quindíop2Accidente de Transito Terrestre | B121: Quindío | C121: Accidente de Transito Terrestre | D121: p2 | E121: 2010-2015 | F121: 30 | G121: 349817 | H121: 100000 | I121: 12-17
A122: Risaraldap2Accidente de Transito Terrestre | B122: Risaralda | C122: Accidente de Transito Terrestre | D122: p2 | E122: 2010-2015 | F122: 28 | G122: 590731 | H122: 100000 | I122: 12-17
A123: Santanderp2Accidente de Transito Terrestre | B123: Santander | C123: Accidente de Transito Terrestre | D123: p2 | E123: 2010-2015 | F123: 95 | G123: 1331904 | H123: 100000 | I123: 12-17
A124: Sucrep2Accidente de Transito Terrestre | B124: Sucre | C124: Accidente de Transito Terrestre | D124: p2 | E124: 2010-2015 | F124: 35 | G124: 620320 | H124: 100000 | I124: 12-17
A125: Tolimap2Accidente de Transito Terrestre | B125: Tolima | C125: Accidente de Transito Terrestre | D125: p2 | E125: 2010-2015 | F125: 111 | G125: 968728 | H125: 100000 | I125: 12-17
A126: Valle Del Caucap2Accidente de Transito Terrestre | B126: Valle Del Cauca | C126: Accidente de Transito Terrestre | D126: p2 | E126: 2010-2015 | F126: 189 | G126: 2806178 | H126: 100000 | I126: 12-17
A127: Araucap2Accidente de Transito Terrestre | B127: Arauca | C127: Accidente de Transito Terrestre | D127: p2 | E127: 2010-2015 | F127: 26 | G127: 205932 | H127: 100000 | I127: 12-17
A128: Casanarep2Accidente de Transito Terrestre | B128: Casanare | C128: Accidente de Transito Terrestre | D128: p2 | E128: 2010-2015 | F128: 37 | G128: 259181 | H128: 100000 | I128: 12-17
A129: Putumayop2Accidente de Transito Terrestre | B129: Putumayo | C129: Accidente de Transito Terrestre | D129: p2 | E129: 2010-2015 | F129: 25 | G129: 277595 | H129: 100000 | I129: 12-17
A130: San Andrés y Providenciap2Accidente de Transito Terrestre | B130: San Andrés y Providencia | C130: Accidente de Transito Terrestre | D130: p2 | E130: 2010-2015 | F130: 6 | G130: 48276 | H130: 100000 | I130: 12-17
A131: =CONCATENATE(B131,D131,C131) -> Amazonasp2Accidente de Transito Terrestre | B131: Amazonas | C131: Accidente de Transito Terrestre | D131: p2 | E131: 2010-2015 | F131: 0 | G131: 64198 | H131: 100000 | I131: 12-17
A132: Guainíap2Accidente de Transito Terrestre | B132: Guainía | C132: Accidente de Transito Terrestre | D132: p2 | E132: 2010-2015 | F132: 0 | G132: 36308 | H132: 100000 | I132: 12-17
A133: Guaviarep2Accidente de Transito Terrestre | B133: Guaviare | C133: Accidente de Transito Terrestre | D133: p2 | E133: 2010-2015 | F133: 2 | G133: 89347 | H133: 100000 | I133: 12-17
A134: Vaupésp2Accidente de Transito Terrestre | B134: Vaupés | C134: Accidente de Transito Terrestre | D134: p2 | E134: 2010-2015 | F134: 1 | G134: 35940 | H134: 100000 | I134: 12-17
A135: Vichadap2Accidente de Transito Terrestre | B135: Vichada | C135: Accidente de Transito Terrestre | D135: p2 | E135: 2010-2015 | F135: 4 | G135: 58727 | H135: 100000 | I135: 12-17
A136: Antioquiap1Suicidio | B136: Antioquia | C136: Suicidio | D136: p1 | E136: 2000-2005 | F136: 247 | G136: 3905635 | H136: 100000 | I136: 12-17
A137: Atlánticop1Suicidio | B137: Atlántico | C137: Suicidio | D137: p1 | E137: 2000-2005 | F137: 29 | G137: 1545640 | H137: 100000 | I137: 12-17
A138: Bogotáp1Suicidio | B138: Bogotá | C138: Suicidio | D138: p1 | E138: 2000-2005 | F138: 198 | G138: 4434484 | H138: 100000 | I138: 12-17
A139: Bolívarp1Suicidio | B139: Bolívar | C139: Suicidio | D139: p1 | E139: 2000-2005 | F139: 25 | G139: 1396552 | H139: 100000 | I139: 12-17
A140: Boyacáp1Suicidio | B140: Boyacá | C140: Suicidio | D140: p1 | E140: 2000-2005 | F140: 65 | G140: 906934 | H140: 100000 | I140: 12-17
A141: Caldasp1Suicidio | B141: Caldas | C141: Suicidio | D141: p1 | E141: 2000-2005 | F141: 59 | G141: 715437 | H141: 100000 | I141: 12-17
A142: Caquetáp1Suicidio | B142: Caquetá | C142: Suicidio | D142: p1 | E142: 2000-2005 | F142: 28 | G142: 329406 | H142: 100000 | I142: 12-17
A143: Caucap1Suicidio | B143: Cauca | C143: Suicidio | D143: p1 | E143: 2000-2005 | F143: 85 | G143: 954018 | H143: 100000 | I143: 12-17
A144: Cesarp1Suicidio | B144: Cesar | C144: Suicidio | D144: p1 | E144: 2000-2005 | F144: 25 | G144: 713258 | H144: 100000 | I144: 12-17
A145: Córdobap1Suicidio | B145: Córdoba | C145: Suicidio | D145: p1 | E145: 2000-2005 | F145: 29 | G145: 1095334 | H145: 100000 | I145: 12-17
A146: Cundinamarcap1Suicidio | B146: Cundinamarca | C146: Suicidio | D146: p1 | E146: 2000-2005 | F146: 85 | G146: 1616620 | H146: 100000 | I146: 12-17
A147: Chocóp1Suicidio | B147: Chocó | C147: Suicidio | D147: p1 | E147: 2000-2005 | F147: 6 | G147: 417797 | H147: 100000 | I147: 12-17
A148: Huilap1Suicidio | B148: Huila | C148: Suicidio | D148: p1 | E148: 2000-2005 | F148: 114 | G148: 737430 | H148: 100000 | I148: 12-17
A149: La Guajirap1Suicidio | B149: La Guajira | C149: Suicidio | D149: p1 | E149: 2000-2005 | F149: 11 | G149: 484426 | H149: 100000 | I149: 12-17
A150: Magdalenap1Suicidio | B150: Magdalena | C150: Suicidio | D150: p1 | E150: 2000-2005 | F150: 23 | G150: 876476 | H150: 100000 | I150: 12-17
A151: Metap1Suicidio | B151: Meta | C151: Suicidio | D151: p1 | E151: 2000-2005 | F151: 29 | G151: 572385 | H151: 100000 | I151: 12-17
A152: Nariñop1Suicidio | B152: Nariño | C152: Suicidio | D152: p1 | E152: 2000-2005 | F152: 119 | G152: 1143116 | H152: 100000 | I152: 12-17
A153: Norte de Santanderp1Suicidio | B153: Norte de Santander | C153: Suicidio | D153: p1 | E153: 2000-2005 | F153: 42 | G153: 908338 | H153: 100000 | I153: 12-17
A154: Quindíop1Suicidio | B154: Quindío | C154: Suicidio | D154: p1 | E154: 2000-2005 | F154: 25 | G154: 354315 | H154: 100000 | I154: 12-17
A155: Risaraldap1Suicidio | B155: Risaralda | C155: Suicidio | D155: p1 | E155: 2000-2005 | F155: 40 | G155: 610262 | H155: 100000 | I155: 12-17
A156: Santanderp1Suicidio | B156: Santander | C156: Suicidio | D156: p1 | E156: 2000-2005 | F156: 60 | G156: 1418731 | H156: 100000 | I156: 12-17
A157: Sucrep1Suicidio | B157: Sucre | C157: Suicidio | D157: p1 | E157: 2000-2005 | F157: 14 | G157: 587661 | H157: 100000 | I157: 12-17
A158: Tolimap1Suicidio | B158: Tolima | C158: Suicidio | D158: p1 | E158: 2000-2005 | F158: 101 | G158: 979330 | H158: 100000 | I158: 12-17
A159: Valle Del Caucap1Suicidio | B159: Valle Del Cauca | C159: Suicidio | D159: p1 | E159: 2000-2005 | F159: 173 | G159: 2869203 | H159: 100000 | I159: 12-17
A160: Araucap1Suicidio | B160: Arauca | C160: Suicidio | D160: p1 | E160: 2000-2005 | F160: 14 | G160: 175113 | H160: 100000 | I160: 12-17
A161: Casanarep1Suicidio | B161: Casanare | C161: Suicidio | D161: p1 | E161: 2000-2005 | F161: 15 | G161: 221201 | H161: 100000 | I161: 12-17
A162: Putumayop1Suicidio | B162: Putumayo | C162: Suicidio | D162: p1 | E162: 2000-2005 | F162: 19 | G162: 246842 | H162: 100000 | I162: 12-17
A163: San Andrés y Providenciap1Suicidio | B163: San Andrés y Providencia | C163: Suicidio | D163: p1 | E163: 2000-2005 | F163: 2 | G163: 49095 | H163: 100000 | I163: 12-17
A164: Amazonasp1Suicidio | B164: Amazonas | C164: Suicidio | D164: p1 | E164: 2000-2005 | F164: 3 | G164: 59624 | H164: 100000 | I164: 12-17
A165: Guainíap1Suicidio | B165: Guainía | C165: Suicidio | D165: p1 | E165: 2000-2005 | F165: 2 | G165: 30204 | H165: 100000 | I165: 12-17
A166: Guaviarep1Suicidio | B166: Guaviare | C166: Suicidio | D166: p1 | E166: 2000-2005 | F166: 5 | G166: 77509 | H166: 100000 | I166: 12-17
A167: Vaupésp1Suicidio | B167: Vaupés | C167: Suicidio | D167: p1 | E167: 2000-2005 | F167: 1 | G167: 32049 | H167: 100000 | I167: 12-17
A168: Vichadap1Suicidio | B168: Vichada | C168: Suicidio | D168: p1 | E168: 2000-2005 | F168: 2 | G168: 46026 | H168: 100000 | I168: 12-17
A169: Antioquiap2Suicidio | B169: Antioquia | C169: Suicidio | D169: p2 | E169: 2010-2015 | F169: 191 | G169: 3961864 | H169: 100000 | I169: 12-17
A170: Atlánticop2Suicidio | B170: Atlántico | C170: Suicidio | D170: p2 | E170: 2010-2015 | F170: 21 | G170: 1563686 | H170: 100000 | I170: 12-17
A171: Bogotáp2Suicidio | B171: Bogotá | C171: Suicidio | D171: p2 | E171: 2010-2015 | F171: 126 | G171: 4574686 | H171: 100000 | I171: 12-17
A172: Bolívarp2Suicidio | B172: Bolívar | C172: Suicidio | D172: p2 | E172: 2010-2015 | F172: 19 | G172: 1482993 | H172: 100000 | I172: 12-17
A173: Boyacáp2Suicidio | B173: Boyacá | C173: Suicidio | D173: p2 | E173: 2010-2015 | F173: 47 | G173: 884002 | H173: 100000 | I173: 12-17
A174: Caldasp2Suicidio | B174: Caldas | C174: Suicidio | D174: p2 | E174: 2010-2015 | F174: 39 | G174: 602555 | H174: 100000 | I174: 12-17
A175: Caquetáp2Suicidio | B175: Caquetá | C175: Suicidio | D175: p2 | E175: 2010-2015 | F175: 21 | G175: 361182 | H175: 100000 | I175: 12-17
A176: Caucap2Suicidio | B176: Cauca | C176: Suicidio | D176: p2 | E176: 2010-2015 | F176: 61 | G176: 993740 | H176: 100000 | I176: 12-17
A177: Cesarp2Suicidio | B177: Cesar | C177: Suicidio | D177: p2 | E177: 2010-2015 | F177: 26 | G177: 776906 | H177: 100000 | I177: 12-17
A178: Córdobap2Suicidio | B178: Córdoba | C178: Suicidio | D178: p2 | E178: 2010-2015 | F178: 43 | G178: 1205931 | H178: 100000 | I178: 12-17
A179: Cundinamarcap2Suicidio | B179: Cundinamarca | C179: Suicidio | D179: p2 | E179: 2010-2015 | F179: 66 | G179: 1735448 | H179: 100000 | I179: 12-17
A180: Chocóp2Suicidio | B180: Chocó | C180: Suicidio | D180: p2 | E180: 2010-2015 | F180: 1 | G180: 415042 | H180: 100000 | I180: 12-17
A181: Huilap2Suicidio | B181: Huila | C181: Suicidio | D181: p2 | E181: 2010-2015 | F181: 84 | G181: 828153 | H181: 100000 | I181: 12-17
A182: La Guajirap2Suicidio | B182: La Guajira | C182: Suicidio | D182: p2 | E182: 2010-2015 | F182: 11 | G182: 657093 | H182: 100000 | I182: 12-17
A183: Magdalenap2Suicidio | B183: Magdalena | C183: Suicidio | D183: p2 | E183: 2010-2015 | F183: 11 | G183: 963897 | H183: 100000 | I183: 12-17
A184: Metap2Suicidio | B184: Meta | C184: Suicidio | D184: p2 | E184: 2010-2015 | F184: 38 | G184: 627203 | H184: 100000 | I184: 12-17
A185: Nariñop2Suicidio | B185: Nariño | C185: Suicidio | D185: p2 | E185: 2010-2015 | F185: 98 | G185: 1194976 | H185: 100000 | I185: 12-17
A186: Norte de Santanderp2Suicidio | B186: Norte de Santander | C186: Suicidio | D186: p2 | E186: 2010-2015 | F186: 30 | G186: 978597 | H186: 100000 | I186: 12-17
A187: Quindíop2Suicidio | B187: Quindío | C187: Suicidio | D187: p2 | E187: 2010-2015 | F187: 18 | G187: 349817 | H187: 100000 | I187: 12-17
A188: Risaraldap2Suicidio | B188: Risaralda | C188: Suicidio | D188: p2 | E188: 2010-2015 | F188: 38 | G188: 590731 | H188: 100000 | I188: 12-17
A189: Santanderp2Suicidio | B189: Santander | C189: Suicidio | D189: p2 | E189: 2010-2015 | F189: 45 | G189: 1331904 | H189: 100000 | I189: 12-17
A190: Sucrep2Suicidio | B190: Sucre | C190: Suicidio | D190: p2 | E190: 2010-2015 | F190: 10 | G190: 620320 | H190: 100000 | I190: 12-17
A191: Tolimap2Suicidio | B191: Tolima | C191: Suicidio | D191: p2 | E191: 2010-2015 | F191: 63 | G191: 968728 | H191: 100000 | I191: 12-17
A192: Valle Del Caucap2Suicidio | B192: Valle Del Cauca | C192: Suicidio | D192: p2 | E192: 2010-2015 | F192: 81 | G192: 2806178 | H192: 100000 | I192: 12-17
A193: Araucap2Suicidio | B193: Arauca | C193: Suicidio | D193: p2 | E193: 2010-2015 | F193: 9 | G193: 205932 | H193: 100000 | I193: 12-17
A194: Casanarep2Suicidio | B194: Casanare | C194: Suicidio | D194: p2 | E194: 2010-2015 | F194: 16 | G194: 259181 | H194: 100000 | I194: 12-17
A195: =CONCATENATE(B195,D195,C195) -> Putumayop2Suicidio | B195: Putumayo | C195: Suicidio | D195: p2 | E195: 2010-2015 | F195: 18 | G195: 277595 | H195: 100000 | I195: 12-17
A196: San Andrés y Providenciap2Suicidio | B196: San Andrés y Providencia | C196: Suicidio | D196: p2 | E196: 2010-2015 | F196: 1 | G196: 48276 | H196: 100000 | I196: 12-17
A197: Amazonasp2Suicidio | B197: Amazonas | C197: Suicidio | D197: p2 | E197: 2010-2015 | F197: 8 | G197: 64198 | H197: 100000 | I197: 12-17
A198: Guainíap2Suicidio | B198: Guainía | C198: Suicidio | D198: p2 | E198: 2010-2015 | F198: 2 | G198: 36308 | H198: 100000 | I198: 12-17
A199: Guaviarep2Suicidio | B199: Guaviare | C199: Suicidio | D199: p2 | E199: 2010-2015 | F199: 3 | G199: 89347 | H199: 100000 | I199: 12-17
A200: Vaupésp2Suicidio | B200: Vaupés | C200: Suicidio | D200: p2 | E200: 2010-2015 | F200: 12 | G200: 35940 | H200: 100000 | I200: 12-17
... 661 more rows

Sheet recoding
A1: indicador | B1: año | C1: periodo
A2: IDH | B2: 2005 | C2: 2000-2005
A3: IPM | B3: 2005 | C3: 2000-2005
A4: IDH | B4: 2015 | C4: 2010-2015
A5: IPM | B5: 2013 | C5: 2010-2015
A6: IRCA
